Cogmind - Beta 9.6 @@@ ROGUE MODE // 2020.05.03 @ 13:02:41 // Winter2019/RPGLIKE Player: dire_polar_fox Result: Escaped! Performance ------------- Evolutions (9) 4500 Regions Visited (28) 5600 Robots Destroyed (607) 3035 Value Destroyed (26171) 26171 Prototype IDs (94) 1880 Alien Tech Used (2) 400 Bonus (24134) 24134 TOTAL SCORE: 65720 Bonus ------- Triggered High Security 500 High Alert Combat Kills 8858 Follower Combat Kills 2933 Network Hubs Disabled 800 Aligned with FarCom 300 Met Imprinter 300 Destroyed Z-Imprinter 1000 Triggered Deep Caves Wall 1000 Exposed GOLEM Chamber 5500 Met Zhirov 300 A7 Reached Mainframe 300 Met R17 at Cetus 500 Read Decrypted Archives 600 Win 3000 Friendly Fire -1757 Cogmind --------- Core Integrity 770/1200 Matter 223/300 Energy 1927/1940 System Corruption 1% Temperature Cool (6) Movement Walking (108) Location To Epsilon Eridani Parts ------- > --- POWER (5) -------- Micro Fission Core Graviton Reactor Light Quantum Reactor Light Quantum Reactor Improved Quantum Reactor > --- PROPULSION (5) --- High-density Centrium Leg High-density Centrium Leg High-density Centrium Leg Experimental Biometal Leg Experimental Biometal Leg > --- UTILITY (10) ----- Assembled Biocell Array Advanced Signal Interpreter Energy Filter Particle Accelerator Improved Weapon Cycler Advanced Reaction Control System Experimental Phase Shifter Centrium Medium Armor Plating EM Dispersion Field Improved Force Field > --- WEAPON (5) ------- Enhanced Gamma Rifle Assembled Focal Cannon Assembled Focal Cannon Assembled Focal Cannon Micro-nuke Launcher > --- INVENTORY (3) ---- Long-range Terrain Scanner Layered Medium Armor Plating Centrium Light Armor Plating Peak State ------------ > --- POWER ------------ Graviton Reactor Light Quantum Reactor Light Quantum Reactor Light Quantum Reactor Improved Quantum Reactor > --- PROPULSION ------- Enhanced Biometal Leg High-density Centrium Leg Experimental Biometal Leg Experimental Biometal Leg Experimental Biometal Leg > --- UTILITY ---------- Assembled Biocell Array Advanced Signal Interpreter Energy Filter Particle Accelerator Improved Weapon Cycler Advanced Reaction Control System Experimental Phase Shifter Centrium Light Armor Plating Centrium Medium Armor Plating Improved Force Field > --- WEAPON ----------- Enhanced Gamma Rifle Assembled Focal Cannon Assembled Focal Cannon Assembled Focal Cannon Micro-nuke Launcher > --- INVENTORY -------- Long-range Terrain Scanner Layered Medium Armor Plating EM Dispersion Field [Rating: 216] Favorites ----------- Power Zionite Light DM Reactor Engine Light Angular Momentum Engine Power Core Light Nuclear Core Reactor Zionite Light DM Reactor Propulsion Enhanced Biometal Leg Leg Enhanced Biometal Leg Hover Unit Aerolev Unit Flight Unit VTOL Module Utility Advanced Signal Interpreter Device Advanced Terrain Scanner Storage Assembled Biocell Array Processor Advanced Signal Interpreter Protection Layered Medium Armor Plating Weapon Assembled Focal Cannon Energy Gun Cooled Pulse Rifle Energy Cannon Assembled Focal Cannon Ballistic Gun Improved KE Penetrator Ballistic Cannon Tri-rail Accelerator Launcher Micro-nuke Launcher Special Weapon Mining Laser Slashing Weapon Phasing Sabre Piercing Weapon Spear Special Melee Weapon Datajack Build | -11 -10 -10 -10 -9 -8 -7 -7 -7 -7 -7 -6 -6 -6 -6 -6 -6 -6 -6 -5 -4 -4 -4 -4 -3 -3 -2 -1 -1 ------- Run | Scr Mat Min Exi Min Mat Fac Low Low Zio Dee Pro Fac Was Fac Ext Cet Arc Hub Fac Fac Upp Upp Zhi Pro Res Res Acc Com Slots Evolved 21 | . . 2 . 1 3 1 2 . 1 1 1 2 . . . 1 . . 1 . . . . . 1 2 . 2 Power 4 | . . . . . . . . . . . 1 1 . . . . . . . . . . . . . 1 . 1 Propulsion 4 | . . . . . 1 . 1 . . . . 1 . . . . . . . . . . . . . 1 . . Utility 9 | . . 2 . 1 1 1 . . . . . . . . . 1 . . 1 . . . . . 1 . . 1 Weapon 4 | . . . . . 1 . 1 . 1 1 . . . . . . . . . . . . . . . . . . Parts Attached 304 | 3 3 12 . 2 24 10 5 9 2 30 8 19 5 4 6 7 . 39 22 6 5 1 6 7 16 21 6 26 Power 31 | 1 . 1 . 1 4 1 . . . 2 1 3 2 . . 2 . . . . . . 2 . 2 5 . 4 Engine 7 | 1 . 1 . 1 2 1 . . . . . 1 . . . . . . . . . . . . . . . . Core 7 | . . . . . 2 . . . . . 1 1 . . . . . . . . . . . . . . . 3 Reactor 17 | . . . . . . . . . . 2 . 1 2 . . 2 . . . . . . 2 . 2 5 . 1 Propulsion 39 | . 2 2 . . 2 1 . 1 . 6 . 3 . 1 . . . 11 1 . . . . . . 4 . 5 Treads . | . . . . . . . . . . . . . . . . . . . . . . . . . . . . . Leg 27 | . . . . . . . . . . 3 . 3 . 1 . . . 10 1 . . . . . . 4 . 5 Wheel . | . . . . . . . . . . . . . . . . . . . . . . . . . . . . . Hover 9 | . 2 . . . 2 1 . . . 3 . . . . . . . 1 . . . . . . . . . . Flight 3 | . . 2 . . . . . 1 . . . . . . . . . . . . . . . . . . . . Utility 172 | 1 1 7 . 1 11 4 2 3 . 11 2 8 2 2 4 2 . 28 18 6 5 1 4 7 10 12 4 16 Device 125 | 1 1 1 . 1 5 3 2 1 . 7 2 3 1 2 4 2 . 23 12 5 5 1 1 7 10 11 4 10 Storage 2 | . . . . . . . . . . 1 . . . . . . . 1 . . . . . . . . . . Processor 7 | . . 5 . . 1 . . . . . . . 1 . . . . . . . . . . . . . . . Hackware . | . . . . . . . . . . . . . . . . . . . . . . . . . . . . . Protection 38 | . . 1 . . 5 1 . 2 . 3 . 5 . . . . . 4 6 1 . . 3 . . 1 . 6 Artifact . | . . . . . . . . . . . . . . . . . . . . . . . . . . . . . Weapon 62 | 1 . 2 . . 7 4 3 5 2 11 5 5 1 1 2 3 . . 3 . . . . . 4 . 2 1 Energy Gun 17 | 1 . . . . 5 2 1 1 . 2 . . . . . 1 . . . . . . . . 2 . 1 1 Energy Cannon 1 | . . . . . . . . . . . . . . . . . . . . . . . . . 1 . . . Ballistic Gun 5 | . . . . . . . . . . . . . 1 1 . 2 . . 1 . . . . . . . . . Ballistic Cannon 4 | . . . . . . . . . . . 1 2 . . . . . . 1 . . . . . . . . . Launcher 16 | . . . . . 2 . 1 3 . 4 2 2 . . . . . . . . . . . . 1 . 1 . Special Weapon 1 | . . 1 . . . . . . . . . . . . . . . . . . . . . . . . . . Impact Weapon . | . . . . . . . . . . . . . . . . . . . . . . . . . . . . . Slashing Weapon 4 | . . 1 . . . . . . 1 . . 1 . . 1 . . . . . . . . . . . . . Piercing Weapon 13 | . . . . . . 2 1 1 1 5 2 . . . . . . . 1 . . . . . . . . . Special Melee Weapon 1 | . . . . . . . . . . . . . . . 1 . . . . . . . . . . . . . Unidentified Prototypes 30 | . . . . . 3 1 . . . 6 . . . . . 2 . 4 1 . . . 4 . 3 2 1 3 Parts Lost 3 | . . . . . . . . . . 3 . . . . . . . . . . . . . . . . . . Power . | . . . . . . . . . . . . . . . . . . . . . . . . . . . . . Propulsion . | . . . . . . . . . . . . . . . . . . . . . . . . . . . . . Utility 2 | . . . . . . . . . . 2 . . . . . . . . . . . . . . . . . . Weapon 1 | . . . . . . . . . . 1 . . . . . . . . . . . . . . . . . . Highest Loss Streak 1 | . . . . . . . . . . 1 . . . . . . . . . . . . . . . . . . Average Slot Usage (%) 98 | . 99 93 100 94 98 99 95 99 99 96 99 97 100 99 100 99 100 99 98 95 95 95 94 95 96 99 100 100 Engine 2 | . 25 20 16 14 2 9 7 7 7 . . . . . . . . . . . . . . . . . . . Reactor 9 | . . . . . . . . . . 5 6 9 15 16 16 15 15 15 15 15 15 15 15 15 14 14 17 16 Leg 14 | . . . . . . . . . . 7 18 17 22 22 22 21 21 20 20 20 20 20 20 20 19 21 21 20 Hover 4 | . 24 15 . . 10 19 16 15 14 12 . . . . . . . . . . . . . . . . . . Flight 1 | . . 5 16 14 6 . . 6 7 . . . . . . . . . . . . . . . . . . . Device 19 | . 25 20 . 1 18 18 28 30 28 21 18 17 12 11 11 13 15 15 22 24 25 25 25 25 26 26 26 26 Storage 3 | . . . . . . . . . . 2 6 5 5 5 5 5 5 5 5 5 5 5 5 5 4 4 4 4 Processor 8 | . . 8 33 30 19 14 7 7 7 6 6 5 9 11 11 10 10 9 5 5 5 5 5 5 4 4 4 4 Protection 6 | . . . 16 14 8 18 11 6 7 6 6 5 5 5 5 5 5 4 4 5 5 5 4 5 4 4 4 5 Energy Gun 2 | . 25 1 . . 6 5 12 12 7 4 . . . . . . . . . . . . . . 1 4 4 4 Energy Cannon 11 | . . . . . . . . . . 8 18 17 16 16 16 15 15 15 15 15 15 15 15 15 14 13 13 12 Ballistic Gun 1 | . . . . . . . . . . . . . 2 4 5 4 5 5 3 . . . . . . . . . Ballistic Cannon 1 | . . . . . . . . . . . 1 5 2 . . . . . 1 5 5 5 5 5 2 . . . Launcher 1 | . . . . . 4 4 1 2 2 1 3 . . . . . . . . . . . . . 1 4 3 4 Slashing Weapon 4 | . . 17 16 14 11 5 . . 4 6 6 5 5 5 4 5 5 5 2 . . . . . . . . . Piercing Weapon 1 | . . . . . . 4 6 6 11 9 1 . . . . . . . . . . . . . . . . . Naked Turns . | . . . . . . . . . . . . . . . . . . . . . . . . . . . . . Heaviest Build 174 | 8 8 9 8 9 32 34 39 34 34 74 84 105 108 104 104 123 123 123 134 134 129 130 132 131 140 160 155 174 Greatest Support 167 | 8 11 11 9 9 32 34 34 34 34 103 103 110 110 123 123 123 123 135 135 135 135 135 135 135 135 165 159 167 Greatest Overweight (x) 1 | . . . . . . . 1 . . 1 . 1 . . . . . 1 . . . . . . 1 1 . 1 Average Overweight (x) . | . . . . . . . . . . . . . . . . . . . . . . . . . . . . . Largest Inventory Capacity 3 | . . . . 1 1 2 2 2 2 2 2 2 2 3 3 3 3 3 3 3 3 3 3 3 3 3 3 3 Average Capacity 2 | . . . . . 1 1 2 2 2 2 2 2 2 2 3 3 3 3 3 3 3 3 3 3 3 3 3 3 Most Carried 3 | . . . . 1 1 2 2 2 2 2 2 2 2 3 3 3 3 3 3 3 3 3 3 3 3 3 3 3 Average Carried 2 | . . . . . . 1 2 1 1 1 1 1 2 2 2 2 3 2 2 2 2 3 2 3 2 2 3 2 Final Capacity 3 | . . . . 1 1 2 2 2 2 2 2 2 2 3 3 3 3 3 3 3 3 3 3 3 3 3 3 3 Final Carried 3 | . . . . 1 1 2 2 2 2 2 2 2 2 3 3 3 3 3 3 3 3 3 3 3 3 3 3 3 Class Distribution -------------------- 21% | Hacker-Assassin 17% | Generator-Assassin 17% | Hacker-Scout 5% | Scavenger-Assassin 5% | Generator-Skirmisher 4% | Scavenger-Tank 4% | Scavenger-Skirmisher 3% | Generator-Tank 3% | Generator-Mutant 3% | Hacker-Ninja 3% | Scout Dominant Class ---------------- Scout | -10/Materials Scout | -10/Mines Scavenger-Mutant | -10/Exiles Scavenger-Scout | -9/Mines Hacker-Scout | -8/Materials Hacker-Scout | -7/Factory Hacker-Scout | -7/Lower Caves Hacker-Scout | -7/Lower Caves Hacker-Scout | -7/Zion Hacker-Ninja | -7/Deep Caves Hacker-Assassin | -6/Proximity Caves Hacker-Assassin | -6/Factory Generator-Assassin | -6/Waste Generator-Assassin | -6/Factory Hacker-Assassin | -6/Extension Generator-Assassin | -6/Cetus Generator-Assassin | -6/Archives Generator-Assassin | -6/Hub_04(d) Scavenger-Assassin | -5/Factory Scavenger-Skirmisher | -4/Factory Scavenger-Tank | -4/Upper Caves Scavenger-Skirmisher | -4/Upper Caves Generator-Skirmisher | -4/Zhirov Generator-Mutant | -3/Proximity Caves Generator-Mutant | -3/Research Generator-Tank | -2/Research Generator-Skirmisher | -1/Access Generator-Tank | -1/Command Resources | -11 -10 -10 -10 -9 -8 -7 -7 -7 -7 -7 -6 -6 -6 -6 -6 -6 -6 -6 -5 -4 -4 -4 -4 -3 -3 -2 -1 -1 ----------- Run | Scr Mat Min Exi Min Mat Fac Low Low Zio Dee Pro Fac Was Fac Ext Cet Arc Hub Fac Fac Upp Upp Zhi Pro Res Res Acc Com Matter Collected 5892 | 230 30 110 10 20 339 61 135 202 20 472 220 334 82 115 175 127 . 911 456 228 186 50 . 310 258 390 58 363 Remotely . | . . . . . . . . . . . . . . . . . . . . . . . . . . . . . Salvage Created 28773 | 18 361 565 . 218 1267 354 128 412 . 1481 769 1412 1934 719 1028 630 39 4216 2709 655 1033 176 . 899 1123 3713 97 2817 Parts 1301 | 5 23 24 . 15 63 34 11 21 . 28 40 76 24 35 64 22 . 221 133 13 48 16 . 45 70 123 9 138 Haulers Intercepted 16 | . . . . . 2 . . 1 . . . 1 . 1 1 . . 4 1 1 . . . . 1 3 . . Recyclers Shooed 11 | . . 1 . 1 1 1 . . . . . 1 . . 1 . . . . . . . . . . 4 . 1 Parts Field Recycled . | . . . . . . . . . . . . . . . . . . . . . . . . . . . . . Retrieved Matter . | . . . . . . . . . . . . . . . . . . . . . . . . . . . . . Parts Self-Destructed 194 | . . . . . . . 8 32 . . 34 . . . . . . . . . 48 16 . 56 . . . . Prevented 3 | . . . . . . . . . . . . . . . . . . . . . 2 . . 1 . . . . Kills | -11 -10 -10 -10 -9 -8 -7 -7 -7 -7 -7 -6 -6 -6 -6 -6 -6 -6 -6 -5 -4 -4 -4 -4 -3 -3 -2 -1 -1 ------- Run | Scr Mat Min Exi Min Mat Fac Low Low Zio Dee Pro Fac Was Fac Ext Cet Arc Hub Fac Fac Upp Upp Zhi Pro Res Res Acc Com Combat Hostiles Destroyed 453 | . 5 11 . 4 18 8 7 21 . 59 21 20 6 11 14 10 . 55 47 8 20 6 . 18 16 37 6 25 Melee 74 | . . 11 . 4 11 6 1 4 . 25 5 4 . . 1 . . 2 . . . . . . . . . . Guns 56 | . 2 . . . 2 2 3 7 . 6 . . . 1 1 1 . 17 9 . . . . . 1 1 1 2 Cannons 254 | . . . . . . . . . . . 11 16 6 10 12 9 . 36 35 8 20 6 . 18 14 31 2 20 AOE 66 | . 2 . . . 5 . 3 10 . 28 5 . . . . . . . 3 . . . . . 1 4 3 2 Classes Destroyed 30 | 1 5 3 . . 3 1 2 . . 4 1 1 1 3 1 . . . . . . . . 1 . . . 3 Worker 31 | . 1 2 . . 1 1 . . . . . . . . . . . 17 2 . . . . . 1 4 . 2 Builder 12 | . 1 . . . 1 . . . . . . 3 . 1 . . . 3 2 . . . . . 1 . . . Tunneler 9 | 1 1 1 . 5 . . . . . . . . . . . . . . . . . . . . 1 . . . Hauler 16 | . . . . . 2 . . 1 . . . 1 . 1 1 . . 4 1 1 . . . . 1 3 . . Recycler 22 | . . 4 . 1 1 . . . . . . 2 . . 3 . . 1 1 . . . . . . 5 . 4 Carrier 4 | . . . . . . . . . . . . . . 1 . . . . . . . . . . 1 2 . . Mechanic 1 | . . . . . . . . . . . . . . . . . . . . 1 . . . . . . . . Operator 14 | . 1 . . . 2 . . . . . . 1 . 2 1 . . 3 2 . . . . . . 2 . . Watcher 34 | . 1 . . . 4 3 . . . . . 2 . . 2 . . 5 4 . . . . . 4 5 . 4 Swarmer 67 | . . 2 . 4 . . 3 11 . . 10 3 . 2 . 1 . 4 . . 9 . . 4 4 5 5 . Saboteur 3 | . . . . . . . . . . . . . . 1 . . . . 1 . . . . . . 1 . . Grunt 154 | . 5 3 . . 11 5 3 9 . . 10 8 . 3 7 4 . 23 23 5 5 4 . 6 4 16 . . Brawler 15 | . . . . . 1 . . 1 . . . 1 . . . . . 2 7 . 2 . . 1 . . . . Duelist 12 | . . . . . . . 1 . . . . 1 . . . 2 . . 1 1 2 1 . 3 . . . . Protector 7 | . . . . . . . . . . . . 1 . . . . . 4 1 . . . . 1 . . . . Sentry 41 | . . . . . 6 2 . . . . . 3 . 2 2 . . 8 4 1 1 1 . 1 5 2 1 2 Demolisher 1 | . . . . . . . . . . . . . . . . . . . . . . . . 1 . . . . Hunter 18 | . . . . . . . . . . . . . . 1 3 . . . 3 . . . . . . 7 . 4 Programmer 34 | . . . . . . 1 . . . . . 2 . 2 . . . 4 7 . . . . . 3 6 . 9 Behemoth 10 | . . . . . . . . . . . 1 1 . . 2 . . 1 . 1 1 . . 1 . . . 2 Compactor 6 | . . . . . . . . . . . . . 6 . . . . . . . . . . . . . . . Cetus Guard 3 | . . . . . . . . . . . . . . . . 3 . . . . . . . . . . . . Lightning 9 | . . . . . . . . . . . . . . . . . . 9 . . . . . . . . . . Striker 2 | . . . . . . . . . . . . . . . . . . . . . . . . . . . . 2 Executioner 4 | . . . . . . . . . . . . . . . . . . . . . . . . . . . . 4 Alpha 7 2 | . . . . . . . . . . . . . . . . . . . . . . . . . . . . 2 Z-Technician 3 | . . . . . . . . . . 3 . . . . . . . . . . . . . . . . . . Z-Light 5 | . . . . . . . . . . 5 . . . . . . . . . . . . . . . . . . Tinkerer 1 | . . . . . . . 1 . . . . . . . . . . . . . . . . . . . . . Assembler 2 | . . . . . . . . . . 2 . . . . . . . . . . . . . . . . . . Assembled 46 | . . 6 . . . . . . . 40 . . . . . . . . . . . . . . . . . . Golem 13 | . . . . . . . . . . 13 . . . . . . . . . . . . . . . . . . Surgeon 1 | . . . . . . . . . . . . . . . 1 . . . . . . . . . . . . . Thug 2 | . . . . . . . . . . . . . . . 1 1 . . . . . . . . . . . . Butcher 1 | . . . . . . . . . . . . . . . . 1 . . . . . . . . . . . . Fireman 1 | . . . . . . . . . . 1 . . . . . . . . . . . . . . . . . . Best Kill Streak 32 | 1 4 6 . 4 11 3 4 4 . 32 7 5 2 4 6 2 . 10 15 5 7 6 . 5 5 12 5 8 Combat Bots Only 32 | . 2 2 . 4 5 3 4 4 . 32 7 4 2 2 5 2 . 8 12 4 7 6 . 5 4 12 5 5 Max Kills in Single Turn 8 | 1 1 1 . 1 3 1 2 2 . 8 2 1 1 2 2 2 . 5 3 2 2 3 . 2 3 3 4 2 Gunslinging . | . . . . . . . . . . . . . . . . . . . . . . . . . . . . . Exploded 8 | . 1 . . . 1 . 2 2 . 8 1 . . . . . . . 2 . . . . . 1 3 3 1 Melee 1 | . . 1 . 1 1 1 1 1 . 1 1 1 . . 1 . . 1 . . . . . . . . . . Uniques/NPCs Destroyed 1 | . . . . . . . . . . 1 . . . . . . . . . . . . . . . . . . Z-Imprinter (-7/Deep Caves) Combat | -11 -10 -10 -10 -9 -8 -7 -7 -7 -7 -7 -6 -6 -6 -6 -6 -6 -6 -6 -5 -4 -4 -4 -4 -3 -3 -2 -1 -1 -------- Run | Scr Mat Min Exi Min Mat Fac Low Low Zio Dee Pro Fac Was Fac Ext Cet Arc Hub Fac Fac Upp Upp Zhi Pro Res Res Acc Com Damage Taken 17212 | . 212 274 . 55 736 294 361 266 . 2268 1561 839 . 385 508 77 768 2840 1514 781 524 119 . 916 95 910 44 865 Core 12330 | . 177 240 . 29 520 198 278 190 . 1424 1161 603 . 273 361 50 611 2050 1039 557 400 75 . 668 75 672 34 645 Absorbed by Shields 2305 | . . . . . 5 . . . . . . . . . 31 81 247 923 . . . . . . . 321 45 652 Redirected to Core 10611 | . 120 126 . 19 386 155 205 159 . 1242 1013 454 . 233 341 50 566 1808 878 525 387 75 . 565 75 646 34 549 Core Remaining (%) 88 | 100 . . . 74 100 . . . . . 93 . . . . . . 76 77 . . . . 100 100 100 . 64 Volleys Fired 941 | 2 55 . . . 30 17 23 43 . 43 37 34 21 23 39 20 1 156 85 24 31 7 . 45 35 79 13 78 Largest 5 | 1 1 . . . 1 1 2 2 . 2 4 4 4 4 4 4 3 4 4 4 4 4 . 4 5 5 4 5 Hottest 204 | 40 40 . . . 50 36 100 119 . 80 123 128 128 110 110 110 75 110 135 135 135 135 . 135 199 199 174 204 Shots Fired 2467 | 2 55 . . . 30 17 31 61 . 49 73 101 64 81 132 74 3 447 263 76 107 26 . 141 103 230 29 272 Gun 545 | 2 55 . . . 8 15 29 53 . 36 . . 1 12 23 14 . 128 38 . . . . . 8 56 3 64 Cannon 1844 | . . . . . . . . . . . 63 101 63 69 109 60 3 319 225 76 107 26 . 141 94 164 25 199 Launcher 78 | . . . . . 22 2 2 8 . 13 10 . . . . . . . . . . . . . 1 10 1 9 Special . | . . . . . . . . . . . . . . . . . . . . . . . . . . . . . Kinetic 330 | . . . . . . . . . . . 3 21 8 12 23 14 . 128 57 12 17 5 . 20 10 . . . Thermal 1863 | . . . . . . 15 29 53 . 36 60 80 56 69 109 60 3 319 206 64 90 21 . 121 84 164 25 199 Explosive 54 | . . . . . . . 2 8 . 13 10 . . . . . . . . . . . . . 1 10 1 9 Electromagnetic 220 | 2 55 . . . 30 2 . . . . . . . . . . . . . . . . . . 8 56 3 64 Robot Hit Streak 62 | 1 7 . . . 3 5 10 20 . 12 23 28 35 39 52 42 2 40 58 36 25 20 . 39 28 62 44 60 Robot Miss Streak 5 | 1 3 . . . 5 1 5 2 . 5 2 1 2 1 2 1 1 2 2 1 1 1 . 1 1 1 1 1 Penetration Max 1 | . . . . . . . . . . . . . . 1 1 1 . 1 1 . . . . . . . . . Secondary Targets 2 | . . . . . . . . 1 . 1 . . . . . . . . . . . . . . . . . . Max Gunslinging Chain 1 | . . . . . . . . 1 . 1 . . . . . . . . . . . . . . . . . . Shots Hit Robots 2159 | 1 34 24 . 18 61 35 29 55 . 134 70 92 55 70 103 59 4 369 201 60 83 21 . 104 72 165 13 227 Core Hits 980 | 1 14 18 . 10 36 15 16 36 . 136 37 42 12 22 33 23 1 136 89 22 32 11 . 31 35 100 8 64 Critical Hits 49 | . . 1 . 1 1 . . . . 6 1 5 . 1 1 . . 23 8 . . . . . 1 . . . Critical Kills 29 | . . 1 . 1 . . . . . 4 1 2 . . . . . 13 6 . . . . . 1 . . . Critical Parts Destroyed 20 | . . . . . 1 . . . . 2 . 3 . 1 1 . . 10 2 . . . . . . . . . Melee Attacks 482 | . . 36 . 23 73 66 10 10 18 122 20 40 . 9 7 1 2 35 10 . . . . . . . . . Impact . | . . . . . . . . . . . . . . . . . . . . . . . . . . . . . Slashing 345 | . . 36 . 23 73 31 . . 12 50 18 40 . 9 7 1 2 35 8 . . . . . . . . . Piercing 137 | . . . . . . 35 10 10 6 72 2 . . . . . . . 2 . . . . . . . . . Sneak Attacks 43 | . . 8 . 6 8 3 1 1 . 6 . 4 . 2 2 . . 1 1 . . . . . . . . . Combat Hostiles 5 | . . 2 . . 2 1 . . . . . . . . . . . . . . . . . . . . . . Follow-up Attacks 25 | . . . . . . . . . . 25 . . . . . . . . . . . . . . . . . . Damage Inflicted 109507 | 26 647 1384 . 1001 3408 1201 1174 2029 . 8880 4371 3999 2554 2725 4166 2197 363 15268 9973 3513 3561 1175 . 6580 3827 11573 816 13096 Guns 9743 | 26 484 . . . 57 204 479 486 . 587 . . 26 166 307 218 . 2480 751 . . . . . 275 1702 62 1433 Cannons 71034 | . . . . . . . . . . . 2065 2805 2528 2210 3431 1979 46 10753 8319 3513 3561 1175 . 6580 3389 7542 473 10665 Explosions 11990 | . 163 . . . 1086 108 341 1245 . 2972 665 87 . 13 . . . 970 688 . . . . . 163 2273 281 935 Melee 16608 | . . 1384 . 1001 2265 876 354 298 . 5321 1641 1107 . 336 428 . 317 1065 215 . . . . . . . . . Ramming 132 | . . . . . . 13 . . . . . . . . . . . . . . . . . . . 56 . 63 Kinetic 7892 | . . . . . . . . . . . 60 352 192 166 307 218 . 2480 1487 776 496 129 . 906 323 . . . Thermal 70194 | . 163 . . . 156 204 479 486 . 797 2005 2497 2362 2223 3431 1979 46 10753 8271 2737 3065 1046 . 5674 3106 7542 473 10699 Explosive 8591 | . . . . . . . 341 1245 . 2762 665 . . . . . . . . . . . . . 123 2273 281 901 Electromagnetic 6090 | 26 484 . . . 987 108 . . . . . 43 . . . . . 970 . . . . . . 275 1702 62 1433 Impact . | . . . . . . . . . . . . . . . . . . . . . . . . . . . . . Slashing 12898 | . . 1384 . 1001 2265 401 . . . 2738 1641 1107 . 336 428 . 317 1065 215 . . . . . . . . . Piercing 3710 | . . . . . . 475 354 298 . 2583 . . . . . . . . . . . . . . . . . . Highest Corruption 10 | . . . . . 1 . . . . . . 2 2 2 1 . . 10 . . . . . . . 1 . 1 Average Corruption 2 | . . . . . 1 . . . . . . 1 2 1 1 . . 7 . . . . . . . 1 . 1 Corruption Purged 6 | . . . . . . . . . . . . . . 1 1 . . 4 . . . . . . . . . . Effects 66 | . . . . . . . . . . . . 15 3 10 1 . . 35 . . . . . . . 2 . . Message Errors 15 | . . . . . . . . . . . . 5 1 1 . . . 8 . . . . . . . . . . Matter Fused 2 | . . . . . . . . . . . . . . . . . . 2 . . . . . . . . . . Heat Flow Errors 7 | . . . . . . . . . . . . . . 3 . . . 4 . . . . . . . . . . Energy Discharges 7 | . . . . . . . . . . . . 3 . 2 . . . 2 . . . . . . . . . . Data Loss (minor) 9 | . . . . . . . . . . . . 3 . 3 1 . . 2 . . . . . . . . . . Data Loss (major) 5 | . . . . . . . . . . . . . . . . . . 5 . . . . . . . . . . Misfires 1 | . . . . . . . . . . . . . . . . . . 1 . . . . . . . . . . Targeting Errors 19 | . . . . . . . . . . . . 4 2 1 . . . 10 . . . . . . . 2 . . Weapon Failures 1 | . . . . . . . . . . . . . . . . . . 1 . . . . . . . . . . Overload Shots 7 | . . . . . . . . 3 . 4 . . . . . . . . . . . . . . . . . . Overflow Damage 7062 | . 18 124 . 300 394 86 66 25 . 325 769 486 64 270 339 7 157 794 437 58 133 153 . 316 274 720 46 701 Projectiles 3986 | . . . . . . . . . . . 126 200 64 256 145 7 . 645 315 58 133 153 . 316 265 594 46 663 Explosions 652 | . 18 . . . 113 35 66 25 . 139 10 . . . . . . 72 65 . . . . . 9 100 . . Melee 2424 | . . 124 . 300 281 51 . . . 186 633 286 . 14 194 . 157 77 57 . . . . . . 26 . 38 Knockbacks 19 | . . . . . . . . . . . 1 . . . . . . . 3 6 3 1 . 4 . 1 . . Impact 1 | . . . . . . . . . . . . . . . . . . . . . . . . . . 1 . . Kinetic 16 | . . . . . . . . . . . 1 . . . . . . . 3 5 3 1 . 3 . . . . Secondary 2 | . . . . . . . . . . . . . . . . . . . . 1 . . . 1 . . . . Self-Inflicted Damage 827 | . . . . . 45 6 . . . 472 29 15 . . . . . 159 71 . . . . . . . . 30 Shots 14 | . . . . . 3 . . . . 2 1 1 . . . . . 4 1 . . . . . . . . 2 Rammed 1 | . . . . . . 1 . . . . . . . . . . . . . . . . . . . . . . Targets Rammed 3 | . . . . . . 1 . . . . . . . . . . . . . . . . . . . 1 . 1 Kicked 2 | . . . . . . . . . . . . . . . . . . . . . . . . . . 1 . 1 Crushed . | . . . . . . . . . . . . . . . . . . . . . . . . . . . . . Highest Temperature 377 | . 68 . . . 163 49 319 215 . 106 103 338 244 194 180 108 22 264 377 305 306 146 . 319 117 182 86 315 Average Temperature 69 | . 18 . . . 37 19 132 62 . 28 53 86 81 37 53 36 17 54 95 153 101 68 . 104 45 51 50 83 Received Heat Transfer 3161 | . 120 18 . . 258 117 171 108 . 297 267 339 . 90 81 4 4 286 483 183 51 30 . 159 18 60 . 17 Effects 6 | . . . . . . . 3 . . . . 1 . . . . . . . 2 . . . . . . . . Energy Bleed 2 | . . . . . . . . . . . . 1 . . . . . . . 1 . . . . . . . . Interference 4 | . . . . . . . 3 . . . . . . . . . . . . 1 . . . . . . . . Siege Activations . | . . . . . . . . . . . . . . . . . . . . . . . . . . . . . Robots Corrupted 4 | . 1 . . . . 1 . . . . . . . . . . . . . . . . . . . 2 . . Combat Hostiles 2 | . 1 . . . . . . . . . . . . . . . . . . . . . . . . 1 . . Parts Fried 35 | . 2 . . . 6 2 . . . . . . . . . . . 4 . . . . . . 3 15 . 3 Impact Corruptions 2 | . . . . . . . . . . . . . . . . . . . . . . . . . . 1 . 1 Robots Melted 1 | . . . . . . . . . . . . . . . . . . . . . . . . . . . . 1 Combat Hostiles 1 | . . . . . . . . . . . . . . . . . . . . . . . . . . . . 1 Parts Melted 35 | . . . . . . 2 3 . . 3 . 4 1 . 5 1 . 5 5 . 1 . . . . 1 . 4 Heat Transferred 33269 | . 250 . . . 100 370 979 1044 . 986 1075 1299 1225 1175 1750 947 25 5216 4099 1325 1500 475 . 2075 1100 2550 150 3554 Parts Sabotaged 4 | . . . . . . . . . . . . . . . . . . 1 3 . . . . . . . . . Parts Stolen . | . . . . . . . . . . . . . . . . . . . . . . . . . . . . . Parts Stripped . | . . . . . . . . . . . . . . . . . . . . . . . . . . . . . Power Chain Reactions 7 | . 2 . . . 2 . . . . . . . . . . . . . . 1 . . . . 1 . . 1 Missiles Intercepted . | . . . . . . . . . . . . . . . . . . . . . . . . . . . . . Alert | -11 -10 -10 -10 -9 -8 -7 -7 -7 -7 -7 -6 -6 -6 -6 -6 -6 -6 -6 -5 -4 -4 -4 -4 -3 -3 -2 -1 -1 ------- Run | Scr Mat Min Exi Min Mat Fac Low Low Zio Dee Pro Fac Was Fac Ext Cet Arc Hub Fac Fac Upp Upp Zhi Pro Res Res Acc Com Peak Influence 2618 | 5 261 251 . 134 304 348 . . . . . 335 92 1615 874 1182 872 1987 2618 1581 . . . . 791 1355 688 1057 Average Influence 576 | 1 155 133 . 63 176 167 . . . . . 191 79 555 567 874 714 927 1438 1426 . . . . 618 861 513 537 Maximum Alert Level 5 | . 1 1 . . 1 1 . . . . . 1 . 5 3 4 3 5 5 4 . . . . 3 4 2 3 Low Security (%) 27 | 100 74 79 . 100 61 74 . . . . . 45 100 49 . . . . . . . . . . . . . 2 Level 1 19 | . 25 20 . . 38 25 . . . . . 54 . 11 20 5 . 7 . . . . . . 3 . 8 35 Level 2 20 | . . . . . . . . . . . . . . 5 59 10 25 35 . . . . . . 62 28 91 28 Level 3 18 | . . . . . . . . . . . . . . 5 19 73 74 21 36 . . . . . 33 67 . 32 Level 4 9 | . . . . . . . . . . . . . . 24 . 10 . 20 27 100 . . . . . 3 . . Level 5 3 | . . . . . . . . . . . . . . 3 . . . 15 10 . . . . . . . . . High Security 1 | . . . . . . . . . . . . . . . . . . . 25 . . . . . . . . . Max Security . | . . . . . . . . . . . . . . . . . . . . . . . . . . . . . Squads Dispatched 81 | . 2 1 . 1 7 6 . . . . . 5 . 11 2 1 . 11 15 3 . . . 1 3 8 2 2 Investigation 21 | . . 1 . 1 5 1 . . . . . 2 . 3 1 1 . 2 1 1 . . . . 1 1 . . Extermination 14 | . . . . . . 1 . . . . . 2 . 2 . . . 2 1 1 . . . . 1 2 . 2 Reinforcement 17 | . 2 . . . 2 2 . . . . . . . 1 1 . . 3 . . . . . . 1 4 1 . Assault 24 | . . . . . . . . . . . . 1 . 4 . . . 4 11 1 . . . 1 . 1 1 . Garrison 5 | . . . . . . 2 . . . . . . . 1 . . . . 2 . . . . . . . . . Intercept . | . . . . . . . . . . . . . . . . . . . . . . . . . . . . . Construction Impeded 4 | . . . . . 1 1 . . . . . . . . 1 . . 1 . . . . . . . . . . Haulers Reinforced 3 | . . . . . . . . . . . . . . . . . . . . . . . . . 1 2 . . Stealth | -11 -10 -10 -10 -9 -8 -7 -7 -7 -7 -7 -6 -6 -6 -6 -6 -6 -6 -6 -5 -4 -4 -4 -4 -3 -3 -2 -1 -1 --------- Run | Scr Mat Min Exi Min Mat Fac Low Low Zio Dee Pro Fac Was Fac Ext Cet Arc Hub Fac Fac Upp Upp Zhi Pro Res Res Acc Com Distress Signals 15 | . 2 1 . . . . . . . . . 1 . . . 1 . 2 . . . . . . 1 6 . 1 Communications Jammed 86 | . . . . . . . . . . . . 3 . 1 1 . . 20 61 . . . . . . . . . Distress Signals 86 | . . . . . . . . . . . . 3 . 1 1 . . 20 61 . . . . . . . . . Times Spotted 599 | . 15 14 . 4 26 13 6 20 . 66 23 22 4 31 20 22 26 68 67 9 16 7 . 24 20 43 6 27 Peak Tracking Total 31 | . 3 3 . 4 4 2 4 5 . 31 4 5 1 5 4 5 16 7 12 4 3 6 . 8 3 9 6 7 Tactical Retreats 29 | . 2 3 . . 3 . . 1 . 3 3 3 . . 1 1 1 3 . . . . . . 1 4 . . Traps | -11 -10 -10 -10 -9 -8 -7 -7 -7 -7 -7 -6 -6 -6 -6 -6 -6 -6 -6 -5 -4 -4 -4 -4 -3 -3 -2 -1 -1 ------- Run | Scr Mat Min Exi Min Mat Fac Low Low Zio Dee Pro Fac Was Fac Ext Cet Arc Hub Fac Fac Upp Upp Zhi Pro Res Res Acc Com Traps Triggered 13 | . . . . . 2 1 . . . . . 1 . . 3 . . 4 . . . . . . . . . 2 Indirectly 3 | . . . . . . . . . . . . . . . . . . 3 . . . . . . . . . . Trap Hack Attempts 22 | . . . . . . . . . . . . . . . 22 . . . . . . . . . . . . . Triggered . | . . . . . . . . . . . . . . . . . . . . . . . . . . . . . Disarmed 2 | . . . . . . . . . . . . . . 1 1 . . . . . . . . . . . . . Reprogrammed 1 | . . . . . . . . . . . . . . . 1 . . . . . . . . . . . . . Reused . | . . . . . . . . . . . . . . . . . . . . . . . . . . . . . Traps Extracted . | . . . . . . . . . . . . . . . . . . . . . . . . . . . . . Installed . | . . . . . . . . . . . . . . . . . . . . . . . . . . . . . Triggered 3 | . . . . . . . . . . . . . . . . . . . . . 3 . . . . . . . Machines | -11 -10 -10 -10 -9 -8 -7 -7 -7 -7 -7 -6 -6 -6 -6 -6 -6 -6 -6 -5 -4 -4 -4 -4 -3 -3 -2 -1 -1 ---------- Run | Scr Mat Min Exi Min Mat Fac Low Low Zio Dee Pro Fac Was Fac Ext Cet Arc Hub Fac Fac Upp Upp Zhi Pro Res Res Acc Com Machines Disabled 84 | . 1 . . . 3 . . . . 3 . 9 . 12 . . 1 28 15 1 2 2 . . . 5 . 2 Max in Single Turn 10 | . 1 . . . 2 . . . . 1 . 7 . 2 . . . 10 5 1 1 1 . . . 1 . 1 Garrison Access 7 | . . . . . . 1 . . . . . 1 . 1 . . . 1 1 1 . . . . 1 . . . Network Hub 4 | . . . . . . . . . . . . . . . . . . 4 . . . . . . . . . . Machines Sabotaged . | . . . . . . . . . . . . . . . . . . . . . . . . . . . . . Garrisons Compromised . | . . . . . . . . . . . . . . . . . . . . . . . . . . . . . Overloaded Fab Kills 1 | . . . . . . . . . . . . . . . . . . . . 1 . . . . . . . . Fab Network Shutdowns 1 | . . . . . . . . . . . . . . . . . . . 1 . . . . . . . . . Hacking | -11 -10 -10 -10 -9 -8 -7 -7 -7 -7 -7 -6 -6 -6 -6 -6 -6 -6 -6 -5 -4 -4 -4 -4 -3 -3 -2 -1 -1 --------- Run | Scr Mat Min Exi Min Mat Fac Low Low Zio Dee Pro Fac Was Fac Ext Cet Arc Hub Fac Fac Upp Upp Zhi Pro Res Res Acc Com Machines Accessed 122 | . 3 1 3 1 9 8 2 . . . 1 12 . 12 15 4 1 8 5 2 1 1 9 . 6 4 7 7 Terminals 77 | . 3 . . 1 6 5 . . . . 1 5 . 8 15 4 . 7 2 . . . . . 4 4 5 7 Fabricators 8 | . . . . . . 1 . . . . . 1 . 3 . . . . 1 1 . . . . . . 1 . Repair Stations 5 | . . . . . 1 . . . . . . 2 . 1 . . . . 1 . . . . . . . . . Recycling Units 6 | . . . . . 1 1 . . . . . 2 . . . . . . . . . . . . 1 . 1 . Scanalyzers 3 | . . . . . 1 . . . . . . 2 . . . . . . . . . . . . . . . . Garrison Access 5 | . . . . . . 1 . . . . . . . . . . . 1 1 1 . . . . 1 . . . Total Hacks 617 | . 13 1 18 6 55 30 2 . . . 4 48 . 55 57 18 25 27 30 4 1 1 48 . 45 52 44 33 Successful 401 | . 12 1 18 2 39 20 2 . . . 4 39 . 31 35 10 25 15 14 4 1 1 48 . 26 23 18 13 Failed 210 | . 1 . . 3 15 10 . . . . . 8 . 23 21 8 . 12 16 . . . . . 18 29 26 20 Catastrophic 28 | . . . . 1 . . . . . . . 1 . 1 2 1 . 1 3 . . . . . 5 5 4 4 Database Lockouts 11 | . . . . 1 3 . . . . . . 2 . 1 3 . . . . . . . . . 1 . . . Manual 238 | . 7 . 1 7 24 13 . . 1 . 3 12 . 25 36 4 9 14 14 3 . . . . 15 21 13 16 Terminals 427 | . 13 . . 6 44 21 . . . . 4 16 . 44 57 18 . 25 17 . . . . . 40 52 37 33 Fabricators 26 | . . . . . . 2 . . . . . 7 . 9 . . . . 2 2 . . . . . . 4 . Repair Stations 19 | . . . . . 2 . . . . . . 8 . 2 . . . . 7 . . . . . . . . . Recycling Units 13 | . . . . . 2 2 . . . . . 4 . . . . . . . . . . . . 2 . 3 . Scanalyzers 20 | . . . . . 7 . . . . . . 13 . . . . . . . . . . . . . . . . Garrison Access 16 | . . . . . . 5 . . . . . . . . . . . 2 4 2 . . . . 3 . . . Terminal Hacks 269 | . 9 1 18 2 21 10 2 . . . 4 6 . 18 24 6 25 10 4 . 1 1 48 . 19 20 11 9 Record 137 | . . . 17 . 11 4 1 . . . 2 3 . 3 5 5 25 3 . . . . 36 . 11 2 5 4 Part Schematic 7 | . . . . . . . . . . . . . . 1 . . . . . . . . 4 . 1 1 . . Robot Analysis 12 | . 3 . . 1 . . . . . . . . . . 2 . . . . . . . 4 . 1 . . 1 Prototype ID Bank 15 | . . . . . 2 1 . . . . . 1 . 1 1 . . 1 1 . . . 4 . 1 2 . . Open Door 13 | . . 1 . . . . 1 . . . . . . . 7 1 . . . . 1 1 . . . . 1 . Branch Access Points 3 | . . . . . 1 . . . . . . . . 1 . . . . . . . . . . . . 1 . Emergency Access Points 2 | . 1 . . . . . . . . . . . . . . . . . . . . . . . . 1 . . Machine Index 3 | . . . . . . . . . . . . . . 1 . . . . . . . . . . 1 . . 1 Terminal Index 3 | . . . . . . 2 . . . . . . . . . . . . . . . . . . . . 1 . Alert Level 11 | . 1 . . . . . . . . . 1 . . 2 2 . . . 1 . . . . . 1 2 . 1 Unreport Threat 25 | . . . . . 1 1 . . . . 1 1 . 3 5 . . 2 2 . . . . . 1 5 3 . Locate Traps 13 | . 1 . . . 1 1 . . . . . 1 . 2 . . . 3 . . . . . . 1 2 . 1 Disarm Traps 1 | . . . . . . . . . . . . . . 1 . . . . . . . . . . . . . . Dispatch Records 2 | . . . . . . . . . . . . . . 1 . . . 1 . . . . . . . . . . Transport Status 1 | . . . . . . . . . . . . . . . 1 . . . . . . . . . . . . . Garrison Status 1 | . . . . . 1 . . . . . . . . . . . . . . . . . . . . . . . Recall Investigation 6 | . 1 . . 1 1 . . . . . . . . 1 1 . . . . . . . . . 1 . . . Recall Reinforcements 1 | . . . . . . . . . . . . . . . . . . . . . . . . . . 1 . . Hauler Manifests 5 | . 1 . . . 1 . . . . . . . . 1 . . . . . . . . . . . 2 . . Registered Components 3 | . 1 . . . 1 . . . . . . . . . . . . . . . . . . . . 1 . . Registered Prototypes 3 | . . . . . 1 1 . . . . . . . . . . . . . . . . . . . . . 1 Zone Layout 1 | . . . . . . . . . . . . . . . . . . . . . . . . . . 1 . . EX-Prototype ID Bank 1 | . . . 1 . . . . . . . . . . . . . . . . . . . . . . . . . Fabricator Hacks 12 | . . . . . . 1 . . . . . 3 . 5 . . . . 1 . . . . . . . 2 . Network Status 1 | . . . . . . . . . . . . . . 1 . . . . . . . . . . . . . . Load Schematic 4 | . . . . . . . . . . . . 1 . 2 . . . . . . . . . . . . 1 . Build 7 | . . . . . . 1 . . . . . 2 . 2 . . . . 1 . . . . . . . 1 . Repair Station Hacks 16 | . . . . . 2 . . . . . . 8 . 2 . . . . 4 . . . . . . . . . Scan Component 9 | . . . . . 1 . . . . . . 5 . 1 . . . . 2 . . . . . . . . . Repair 7 | . . . . . 1 . . . . . . 3 . 1 . . . . 2 . . . . . . . . . Recycling Unit Hacks 10 | . . . . . 2 1 . . . . . 3 . . . . . . . . . . . . 2 . 2 . Process 4 | . . . . . . . . . . . . 2 . . . . . . . . . . . . 1 . 1 . Report Inventory 5 | . . . . . 1 1 . . . . . 1 . . . . . . . . . . . . 1 . 1 . Retrieve Components 1 | . . . . . 1 . . . . . . . . . . . . . . . . . . . . . . . Scanalyzer 19 | . . . . . 6 . . . . . . 13 . . . . . . . . . . . . . . . . Insert Component 8 | . . . . . 2 . . . . . . 6 . . . . . . . . . . . . . . . . Analyze 11 | . . . . . 4 . . . . . . 7 . . . . . . . . . . . . . . . . Garrison Access Hacks 4 | . . . . . . . . . . . . . . . . . . 1 1 1 . . . . 1 . . . Seal Access 4 | . . . . . . . . . . . . . . . . . . 1 1 1 . . . . 1 . . . Unauthorized Hacks 71 | . 3 . . . 8 8 . . . . . 6 . 6 11 4 . 4 4 3 . . . . 4 3 3 4 Terminals 61 | . 3 . . . 8 6 . . . . . 4 . 6 11 4 . 4 2 . . . . . 3 3 3 4 Assimilate 3 | . . . . . 2 . . . . . . . . 1 . . . . . . . . . . . . . . Botnet 57 | . 3 . . . 6 5 . . . . . 4 . 5 11 4 . 4 2 . . . . . 3 3 3 4 Operators 1 | . . . . . . 1 . . . . . . . . . . . . . . . . . . . . . . Fabricators 4 | . . . . . . . . . . . . 1 . . . . . . 1 2 . . . . . . . . Prioritize 2 | . . . . . . . . . . . . 1 . . . . . . 1 . . . . . . . . . Haulers 1 | . . . . . . . . . . . . . . . . . . . . 1 . . . . . . . . Overload 1 | . . . . . . . . . . . . . . . . . . . . 1 . . . . . . . . Repair Stations . | . . . . . . . . . . . . . . . . . . . . . . . . . . . . . Recycling Units 2 | . . . . . . 1 . . . . . 1 . . . . . . . . . . . . . . . . Mask 2 | . . . . . . 1 . . . . . 1 . . . . . . . . . . . . . . . . Scanalyzers . | . . . . . . . . . . . . . . . . . . . . . . . . . . . . . Garrison Access 4 | . . . . . . 1 . . . . . . . . . . . . 1 1 . . . . 1 . . . Reprogram 1 | . . . . . . . . . . . . . . . . . . . 1 . . . . . . . . . Intercept 2 | . . . . . . . . . . . . . . . . . . . . 1 . . . . 1 . . . Jam 1 | . . . . . . 1 . . . . . . . . . . . . . . . . . . . . . . Data Cores Recovered 6 | . . . . . . . . . . . . . . 2 1 . . 3 . . . . . . . . . . Used 1 | . . . . . . . . . . . . . . . 1 . . . . . . . . . . . . . Hacking Detections 80 | . 2 . . . 5 8 . . . . 1 8 . 11 12 3 . 7 4 1 . . . . 4 4 5 5 Full Trace Events 10 | . 1 . . . 1 . . . . . . 1 . 2 . 1 . 2 1 . . . . . . 1 . . Feedback Events 1 | . . . . . . . . . . . . 1 . . . . . . . . . . . . . . . . Corruption 1 | . . . . . . . . . . . . 1 . . . . . . . . . . . . . . . . Feedback Blocked . | . . . . . . . . . . . . . . . . . . . . . . . . . . . . . Robot Schematics Acquired . | . . . . . . . . . . . . . . . . . . . . . . . . . . . . . Robots Built . | . . . . . . . . . . . . . . . . . . . . . . . . . . . . . Matter . | . . . . . . . . . . . . . . . . . . . . . . . . . . . . . Time . | . . . . . . . . . . . . . . . . . . . . . . . . . . . . . Total Robot Build Rating . | . . . . . . . . . . . . . . . . . . . . . . . . . . . . . Part Schematics Acquired 15 | . . . . . 2 . . . . . . 6 . 1 . . . . . . . . 4 . 1 1 . . Parts Built 8 | . . . . . . 2 . . . . . 2 . 3 . . . . . . . . . . . . 1 . Matter 1422 | . . . . . . 212 . . . . . 212 . 486 . . . . 234 . . . . . . . 278 . Time 381 | . . . . . . 53 . . . . . 53 . 112 . . . . 117 . . . . . . . 46 . Total Part Build Rating 47 | . . . . . . 12 . . . . . 12 . 14 . . . . . . . . . . . . 9 . Parts Repaired 7 | . . . . . 1 . . . . . . 3 . 1 . . . . 2 . . . . . . . . . Time 267 | . . . . . 38 . . . . . . 119 . 31 . . . . 79 . . . . . . . . . Parts Recycled . | . . . . . . . . . . . . . . . . . . . . . . . . . . . . . Recycled Matter 490 | . . . . . . . . . . . . 289 . . . . . . . . . . . . 197 . 4 . Retrieved Matter . | . . . . . . . . . . . . . . . . . . . . . . . . . . . . . Retrieved Components 1 | . . . . . 1 . . . . . . . . . . . . . . . . . . . . . . . Parts Scanalyzed 8 | . . . . . 2 . . . . . . 6 . . . . . . . . . . . . . . . . Part Schematics Acquired 8 | . . . . . 2 . . . . . . 6 . . . . . . . . . . . . . . . . Parts Damaged 3 | . . . . . . . . . . . . 3 . . . . . . . . . . . . . . . . Bothacking | -11 -10 -10 -10 -9 -8 -7 -7 -7 -7 -7 -6 -6 -6 -6 -6 -6 -6 -6 -5 -4 -4 -4 -4 -3 -3 -2 -1 -1 ------------ Run | Scr Mat Min Exi Min Mat Fac Low Low Zio Dee Pro Fac Was Fac Ext Cet Arc Hub Fac Fac Upp Upp Zhi Pro Res Res Acc Com Used RIF Installer . | . . . . . . . . . . . . . . . . . . . . . . . . . . . . . Robots Hacked . | . . . . . . . . . . . . . . . . . . . . . . . . . . . . . Non-combat . | . . . . . . . . . . . . . . . . . . . . . . . . . . . . . Combat . | . . . . . . . . . . . . . . . . . . . . . . . . . . . . . Robot Hacks Applied . | . . . . . . . . . . . . . . . . . . . . . . . . . . . . . Relay Couplers Released 2 | . . . . . . . . . . . . . . 1 . . . 1 . . . . . . . . . . Machine Destruction 1 | . . . . . . . . . . . . . . 1 . . . . . . . . . . . . . . Programmers 1 | . . . . . . . . . . . . . . . . . . 1 . . . . . . . . . . Robots Rewired 17 | . . . . . . . . . . . . 1 . . 11 . . . . . 2 2 . 1 . . . . Allies Hacked . | . . . . . . . . . . . . . . . . . . . . . . . . . . . . . Hacks Repelled . | . . . . . . . . . . . . . . . . . . . . . . . . . . . . . Allies | -11 -10 -10 -10 -9 -8 -7 -7 -7 -7 -7 -6 -6 -6 -6 -6 -6 -6 -6 -5 -4 -4 -4 -4 -3 -3 -2 -1 -1 -------- Run | Scr Mat Min Exi Min Mat Fac Low Low Zio Dee Pro Fac Was Fac Ext Cet Arc Hub Fac Fac Upp Upp Zhi Pro Res Res Acc Com Total Allies 58 | . . 1 . 3 . . . . 5 . . 1 20 . 19 . 3 . 1 . 2 2 . 1 . . . . Largest Group 20 | . . 1 . 3 3 . . . 5 5 . 1 20 20 17 17 10 . 1 . 2 4 4 5 3 . . . Highest-Rated Group 745 | . . 31 . 40 40 . . . 261 261 . 26 745 745 659 659 691 . 49 . 60 139 139 181 119 . . . Highest-Rated Ally 156 | . . 31 . 16 16 . . . 94 94 . 26 50 50 156 156 141 . 49 . 30 49 49 49 49 . . . Total Orders 47 | . . . . 2 . . . . . . . 3 . . . 1 . . . . 14 7 . 8 7 5 . . STAY 7 | . . . . 1 . . . . . . . 1 . . . 1 . . . . 3 . . . . 1 . . GOTO 14 | . . . . . . . . . . . . 1 . . . . . . . . 6 2 . 1 4 . . . FOLLOW 16 | . . . . 1 . . . . . . . 1 . . . . . . . . 4 2 . 5 3 . . . EXPLORE 10 | . . . . . . . . . . . . . . . . . . . . . 1 3 . 2 . 4 . . Ally Attacks 526 | . . 11 . . 11 . . . . 55 . . 20 138 84 116 38 . 7 . . 5 . 39 2 . . . Total Damage 12345 | . . 149 . . 170 . . . . 862 . . 336 4432 1823 2025 1041 . 242 . . 108 . 1157 . . . . Kills 94 | . . 2 . . 2 . . . . 4 . . . 33 12 20 11 . 1 . . 2 . 7 . . . . Allies Corrupted 1 | . . . . . . . . . . . . . . 1 . . . . . . . . . . . . . . Allies Melted . | . . . . . . . . . . . . . . . . . . . . . . . . . . . . . Intel | -11 -10 -10 -10 -9 -8 -7 -7 -7 -7 -7 -6 -6 -6 -6 -6 -6 -6 -6 -5 -4 -4 -4 -4 -3 -3 -2 -1 -1 ------- Run | Scr Mat Min Exi Min Mat Fac Low Low Zio Dee Pro Fac Was Fac Ext Cet Arc Hub Fac Fac Upp Upp Zhi Pro Res Res Acc Com Robot Analysis Total 12 | . 3 . . 1 . . . . . . . . . . 2 . . . . . . . 4 . 1 . . 1 Derelict Logs Recovered 16 | . . 3 . 2 . . 1 3 3 . . . . . . . . . . . 3 1 . . . . . . Drone Launches 8 | . . . 1 . . . . . . . . . . . . . . . . . 2 2 . . 3 . . . Drone Recoveries . | . . . . . . . . . . . . . . . . . . . . . . . . . . . . . Exploration | -11 -10 -10 -10 -9 -8 -7 -7 -7 -7 -7 -6 -6 -6 -6 -6 -6 -6 -6 -5 -4 -4 -4 -4 -3 -3 -2 -1 -1 ------------- Run | Scr Mat Min Exi Min Mat Fac Low Low Zio Dee Pro Fac Was Fac Ext Cet Arc Hub Fac Fac Upp Upp Zhi Pro Res Res Acc Com Turns Passed 23652 | 30 319 472 215 326 1014 1131 614 634 532 2408 1478 2038 450 1131 1645 634 203 2117 1101 406 751 390 211 719 614 796 438 835 Spaces Moved 18995 | 43 309 537 531 613 1022 1308 996 889 1010 1937 860 1025 269 682 985 403 145 1002 616 267 602 313 175 518 480 512 408 538 Core 50 | 43 7 . . . . . . . . . . . . . . . . . . . . . . . . . . . Treads . | . . . . . . . . . . . . . . . . . . . . . . . . . . . . . Legs 10217 | . . . . . . . . . . 417 860 1025 269 682 985 403 145 1002 616 267 602 313 175 518 480 512 408 538 Wheels . | . . . . . . . . . . . . . . . . . . . . . . . . . . . . . Hover 6846 | . 302 357 . . 464 1308 996 889 1010 1520 . . . . . . . . . . . . . . . . . . Flight 1882 | . . 180 531 613 558 . . . . . . . . . . . . . . . . . . . . . . . Fastest Speed 40 | 50 50 40 40 40 40 46 46 46 46 45 140 135 135 135 135 135 135 100 100 100 100 100 100 100 100 94 94 94 Average Speed 85 | 50 59 53 40 40 42 46 51 46 46 65 140 140 135 135 135 135 135 124 100 100 100 100 100 100 100 96 94 97 Slowest Speed 170 | 50 60 60 40 40 50 46 106 46 46 150 140 170 135 135 135 135 135 170 100 100 100 100 100 100 130 130 94 134 Overloaded Moves . | . . . . . . . . . . . . . . . . . . . . . . . . . . . . . Propulsion Burnouts . | . . . . . . . . . . . . . . . . . . . . . . . . . . . . . Robots Hopped 1 | . . . . . . . . . . . . . . . . . . . . . . . . 1 . . . . Cave-ins Triggered 2 | . . . . . . . . . . . . . . . . . . 2 . . . . . . . . . . Teleports 1 | . . . . . . . . . . . . . . . . . . . . . . . 1 . . . . . Exploration Rate (%) 63 | 4 52 87 93 99 63 35 93 89 87 87 92 22 94 18 96 93 95 86 19 10 95 83 63 97 18 26 15 27 Regions Visited 28 Branch Regions 17 Pre-discovered Areas 10 | . . 2 . 2 . . . . 2 . . . . . . . . . . . 1 . 3 . . . . . Known Exits Taken 24 | . . 1 1 1 1 1 1 1 1 1 1 . . 1 1 1 1 1 1 1 1 1 1 1 1 1 1 . Unknown Exits Taken 2 | 1 1 . . . . . . . . . . . . . . . . . . . . . . . . . . . Scrap Searched 30 | . . 1 . 1 . . 4 6 2 . 3 . . . . . . . . . 5 4 . 4 . . . . Spaces Dug 168 | . . 1 . 3 16 38 5 12 4 1 1 22 . 6 1 1 . 10 8 2 . . . 8 6 5 12 6 Terrain Destroyed 2032 | . 13 1 . 3 40 38 30 108 4 114 101 49 8 70 42 15 2 749 184 11 41 5 . 52 60 157 32 103 Melee 114 | . . 1 . 3 16 38 5 2 4 1 1 19 . 6 1 1 . 10 6 . . . . . . . . . Projectile 544 | . . . . . . . . 1 . . 16 29 8 21 41 14 2 106 51 11 41 5 . 52 36 51 19 40 AOE 1374 | . 13 . . . 24 . 25 105 . 113 84 1 . 43 . . . 633 127 . . . . . 24 106 13 63 Actions | -11 -10 -10 -10 -9 -8 -7 -7 -7 -7 -7 -6 -6 -6 -6 -6 -6 -6 -6 -5 -4 -4 -4 -4 -3 -3 -2 -1 -1 --------- Run | Scr Mat Min Exi Min Mat Fac Low Low Zio Dee Pro Fac Was Fac Ext Cet Arc Hub Fac Fac Upp Upp Zhi Pro Res Res Acc Com Total 24294 | 47 388 668 532 658 1457 1738 1061 1062 1059 2901 1043 1504 322 823 1219 456 147 1564 945 367 696 377 210 644 556 694 445 711 Wait 2470 | . 11 65 1 19 255 283 11 85 26 691 66 318 24 67 47 10 . 175 113 45 10 25 21 20 5 26 17 34 Move 18965 | 42 308 536 530 612 1021 1307 995 888 1009 1936 859 1025 268 681 984 402 144 1001 615 266 601 312 174 515 479 511 407 537 Hop 1 | . . . . . . . . . . . . . . . . . . . . . . . . 1 . . . . Pick Up 58 | . . . . 1 4 10 . 3 5 3 1 7 . 2 4 1 . 5 3 3 1 . . . 3 1 . 1 Fast Attach 128 | 3 1 10 . 1 14 5 2 2 1 17 2 6 3 2 . 5 . 14 7 . . . 8 . 6 7 2 10 Attach 15 | . . . . . . 2 . . . 1 1 . . . 1 1 . 1 2 . . . . . 2 2 . 2 Detach 10 | . . . . . . 1 . . . 1 . 1 . . . . . 1 2 . . . 1 . 1 2 . . Swap 163 | . 2 2 . 1 10 3 3 7 1 12 5 13 2 2 5 1 . 24 13 6 5 1 . 7 8 12 4 14 Drop 175 | . 2 10 . 1 17 13 1 4 5 28 2 11 4 2 4 5 . 23 5 4 1 . 6 . 7 7 2 11 Fire 941 | 2 55 . . . 30 17 23 43 . 43 37 34 21 23 39 20 1 156 85 24 31 7 . 45 35 79 13 78 Melee 437 | . . 36 . 23 73 66 10 10 12 85 18 40 . 9 7 1 2 35 10 . . . . . . . . . Ram 1 | . . . . . . 1 . . . . . . . . . . . . . . . . . . . . . . Kick 2 | . . . . . . . . . . . . . . . . . . . . . . . . . . 1 . 1 Crush . | . . . . . . . . . . . . . . . . . . . . . . . . . . . . . Escape Stasis 28 | . . . . . . 13 . . . . . . . . 10 . . . . . . . . . . . . 5 Rewire 100 | . . . . . . . . . . 1 . 7 . . 70 . . . . . 16 3 . 3 . . . . Trap 22 | . . . . . . . . . . . . . . . 22 . . . . . . . . . . . . . Miscellaneous 778 | . 9 9 1 . 33 17 16 20 . 83 52 42 . 35 26 10 . 129 90 19 31 29 . 53 10 46 . 18 Route ------- -11/Scrapyard -10/Materials (discovered 3 exits: [*Mat x2] / *Min) -10/Mines (discovered 2 exits: [*Mat] / *Exi) -10/Exiles (discovered 2 exits: *Min x2) -9/Mines (discovered 2 exits: *Mat x2) -8/Materials -7/Factory -7/Lower Caves -7/Lower Caves (discovered 2 exits: *Fac / *Zio) -7/Zion (discovered 2 exits: *Dee / *Pro) -7/Deep Caves -6/Proximity Caves -6/Factory (discovered 3 exits: *Low / *Ext x2) -6/Waste -6/Factory (discovered 5 exits: *Fac / Low x2 / *Ext x2) -6/Extension (discovered 3 exits: *Fac x2 / *Cet) -6/Cetus (discovered 3 exits: *Fac x2 / *Arc) -6/Archives (discovered 3 exits: *Fac / *Hub x2) -6/Hub_04(d) (discovered 4 exits: *Fac x4) -5/Factory -4/Factory (discovered 2 exits: *Res / *Upp) -4/Upper Caves -4/Upper Caves (discovered 2 exits: *Res / *Zhi) -4/Zhirov -3/Proximity Caves -3/Research (discovered 3 exits: *Res / Qua x2) -2/Research (discovered 2 exits: *Acc / Tes) -1/Access -1/Command To Epsilon Eridani History --------- Turn | Location | Event 3 | -11/Scrapyard | Discovered new exit (range 16) 31 | -11/Scrapyard | Entered Materials 164 | -10/Materials | Discovered new exit (range 11) 195 | -10/Materials | Discovered new exit (range 14) 225 | -10/Materials | Discovered new exit (range 16) 303 | -10/Materials | Build established: Scout 350 | -10/Materials | Entered Mines 364 | -10/Mines | Assembled infested the area 369 | -10/Mines | Assisted by a Guerilla fighting off Assembled 376 | -10/Mines | Received a Mining Laser from a helpful Derelict 402 | -10/Mines | Learned location of Mines (-9) 420 | -10/Mines | Met a Derelict shopkeep closing up shop 500 | -10/Mines | Discovered new exit (range 16) 589 | -10/Mines | Discovered new exit (range 15) 599 | -10/Mines | Reached level 2 601 | -10/Mines | Upgraded with Utility slot (x2) 642 | -10/Mines | Received a Rocket Launcher from a helpful Derelict 784 | -10/Mines | Learned location of 1 exit from Materials 821 | -10/Mines | Deemed a non-threat by the Exiles lab entrance 822 | -10/Mines | Identified exit to Exiles 822 | -10/Mines | Entered Exiles 828 | -10/Exiles | Discovered new exit (range 15) 833 | -10/Exiles | Identified exit to Mines 841 | -10/Exiles | Met 8R-AWN 846 | -10/Exiles | Met EX-HEX 866 | -10/Exiles | Met EX-DEC 874 | -10/Exiles | Visited The Gauntlet 928 | -10/Exiles | Discovered exit to Mines (range 10) 954 | -10/Exiles | Met EX-BIN 961 | -10/Exiles | Aligned with FarCom system 962 | -10/Exiles | Given EX-Vault access code 975 | -10/Exiles | Opened EX-Vault 1005 | -10/Exiles | Warned to stay clear of 0b10 Research branches 1037 | -10/Exiles | Entered Mines 1037 | -9/Mines | Accompanied by 1 ally 1065 | -9/Mines | Met a Derelict bent on vengeance 1065 | -9/Mines | Discovered new exit (range 8) 1068 | -9/Mines | Identified exit to Materials 1114 | -9/Mines | Learned location of Zion (-7) 1123 | -9/Mines | A weapon hastily lodged in a ceiling crevice suddenly fell to the ground 1137 | -9/Mines | Assisted by bots powering up and referring to "LRC-V3" 1184 | -9/Mines | Reached level 3 1199 | -9/Mines | Upgraded with Utility slot (x1) 1238 | -9/Mines | Central database locked down 1253 | -9/Mines | Found a damaged Exp. Sensor Array with a note attached 1254 | -9/Mines | Found Prototype Device 1273 | -9/Mines | Discovered exit to Materials (range 7) 1349 | -9/Mines | Build established: Scavenger-Scout 1363 | -9/Mines | Entered Materials 1363 | -8/Materials | Accompanied by 3 allies 1364 | -8/Materials | Identified exit to Factory 1365 | -8/Materials | Reached level 4 1365 | -8/Materials | Upgraded with Weapon slot (x1) 1379 | -8/Materials | Identified Exp. Sensor Array 1598 | -8/Materials | Repaired Imp. Light Armor Plating 1833 | -8/Materials | Reached level 5 1836 | -8/Materials | Upgraded with Propulsion slot (x1) 2167 | -8/Materials | Central database locked down 2175 | -8/Materials | Build established: Hacker-Scout 2337 | -8/Materials | Reached level 6 2339 | -8/Materials | Upgraded with Utility slot (x1) 2377 | -8/Materials | Entered Factory 2379 | -7/Factory | Reached level 7 2438 | -7/Factory | Fabricated Variable Charge Gun (x2) 2834 | -7/Factory | Garrison activated, responded to threat 3168 | -7/Factory | Garrison activated, responded to threat 3216 | -7/Factory | Reached level 8 3216 | -7/Factory | Upgraded with Utility slot (x1) 3493 | -7/Factory | Discovered new exit (range 15) 3504 | -7/Factory | Identified exit to Lower Caves 3508 | -7/Factory | Entered Lower Caves 3510 | -7/Lower Caves | Reached level 9 3586 | -7/Lower Caves | Encountered a Warlord checkpoint 3664 | -7/Lower Caves | Learned location of 1 exit from Factory 3766 | -7/Lower Caves | Upgraded with Propulsion slot (x1) 3766 | -7/Lower Caves | Upgraded with Weapon slot (x1) 3833 | -7/Lower Caves | Discovered new exit (range 14) 3909 | -7/Lower Caves | Identified exit to Lower Caves 4122 | -7/Lower Caves | Entered another Lower Caves area 4133 | -7/Lower Caves | Discovered new exit (range 17) 4148 | -7/Lower Caves | Reached level 10 4172 | -7/Lower Caves | Identified exit to Factory 4420 | -7/Lower Caves | Learned Factory emergency access door positions 4421 | -7/Lower Caves | Encountered a Warlord checkpoint 4543 | -7/Lower Caves | Reached level 11 4676 | -7/Lower Caves | Discovered new exit (range 12) 4687 | -7/Lower Caves | Identified exit to Zion 4756 | -7/Lower Caves | Entered Zion 4784 | -7/Zion | Discovered new exit (range 12) 4788 | -7/Zion | Identified exit to Proximity Caves 4832 | -7/Zion | Gained Derelict followers 4864 | -7/Zion | Identified exit to Deep Caves 4908 | -7/Zion | Given A8's code to call for help 4930 | -7/Zion | Upgraded with Weapon slot (x1) 5005 | -7/Zion | Learned location of Quarantine (-3) 5053 | -7/Zion | Learned Factory interactive machine intel 5081 | -7/Zion | Learned Factory terminal intel 5157 | -7/Zion | Rebuked by Imprinter 5232 | -7/Zion | Enhanced Grunt warped into view, answering call for help 5233 | -7/Zion | Enhanced Grunt warped into view, answering call for help 5270 | -7/Zion | Saw the warning signs outside the Deep Caves entrance 5288 | -7/Zion | Entered Deep Caves 5288 | -7/Deep Caves | Accompanied by 5 allies 5290 | -7/Deep Caves | Reached level 12 5387 | -7/Deep Caves | Attacked by Z-Imprinter 5396 | -7/Deep Caves | Destroyed Z-Imprinter 5564 | -7/Deep Caves | Core integrity fell below 50% 5583 | -7/Deep Caves | Found Prototype Protection 5583 | -7/Deep Caves | Identified Zio. Weapon Casing 5738 | -7/Deep Caves | Z-Facility disabled 5877 | -7/Deep Caves | Build established: Hacker-Ninja 5938 | -7/Deep Caves | Discovered new exit (range 18) 5942 | -7/Deep Caves | Spotted as-56226 5968 | -7/Deep Caves | Identified exit to Proximity Caves 5993 | -7/Deep Caves | Triggered Deep Caves wall 5993 | -7/Deep Caves | Reached level 13 5993 | -7/Deep Caves | Destroyed as-56226 5998 | -7/Deep Caves | Exposed GOLEM chamber 6001 | -7/Deep Caves | Reached level 14 6056 | -7/Deep Caves | Core integrity fell below 20% 6088 | -7/Deep Caves | Destroyed 32 combat bots 6125 | -7/Deep Caves | Spotted AS-91391 6163 | -7/Deep Caves | Destroyed AS-91391 6170 | -7/Deep Caves | Spotted AS-17182 6182 | -7/Deep Caves | Triggered Deep Caves wall 6187 | -7/Deep Caves | Destroyed AS-17182 6380 | -7/Deep Caves | Spotted as-57257 6400 | -7/Deep Caves | Found GOLEM Unit 6512 | -7/Deep Caves | Upgraded with Weapon slot (x1) 7357 | -7/Deep Caves | Build established: Hacker-Assassin 7696 | -7/Deep Caves | Entered Proximity Caves 7698 | -6/Proximity Caves | Reached level 15 7807 | -6/Proximity Caves | Spotted B-75 Beast 7824 | -6/Proximity Caves | Destroyed B-75 Beast 8270 | -6/Proximity Caves | Reached level 16 8272 | -6/Proximity Caves | Upgraded with Power slot (x1) 8469 | -6/Proximity Caves | Destroyed 7 combat bots 8712 | -6/Proximity Caves | Discovered exit to Factory (range 20) 9041 | -6/Proximity Caves | Reached level 17 9174 | -6/Proximity Caves | Entered Factory 9175 | -6/Factory | Identified exit to Extension 9178 | -6/Factory | Loaded intel: 48 interactive machine locations 9179 | -6/Factory | Loaded intel: 22 terminal locations 9344 | -6/Factory | Repaired Lyr. Medium Armor Plating 9390 | -6/Factory | Repaired Hvy. Missile Launcher 9521 | -6/Factory | Reached level 18 9919 | -6/Factory | Upgraded with Power slot (x1) 9956 | -6/Factory | Spotted B-75 Beast 9965 | -6/Factory | Destroyed B-75 Beast 10245 | -6/Factory | Central database locked down 10248 | -6/Factory | Build established: Generator-Assassin 10405 | -6/Factory | Discovered new exit (range 16) 10560 | -6/Factory | Identified exit to Lower Caves 10783 | -6/Factory | Build established: Hacker-Assassin 10975 | -6/Factory | Repaired Lyr. Medium Armor Plating 11026 | -6/Factory | Reached level 19 11063 | -6/Factory | Upgraded with Propulsion slot (x1) 11104 | -6/Factory | Fabricated Imp. Weapon Cycler (x2) 11212 | -6/Factory | Sucked down chute 11212 | -6/Factory | Entered Waste 11213 | -6/Waste | Met a frightened Derelict 11223 | -6/Waste | Spotted C-40 Crusher 11243 | -6/Waste | Destroyed C-40 Crusher 11276 | -6/Waste | Spotted C-40 Crusher 11278 | -6/Waste | Destroyed C-40 Crusher 11302 | -6/Waste | Destroyed C-40 Crusher 11359 | -6/Waste | Spotted C-40 Crusher 11364 | -6/Waste | Build established: Generator-Assassin 11366 | -6/Waste | Destroyed C-40 Crusher 11377 | -6/Waste | Spotted C-40 Crusher 11378 | -6/Waste | Destroyed C-40 Crusher 11441 | -6/Waste | Spotted C-40 Crusher 11450 | -6/Waste | Destroyed C-40 Crusher 11473 | -6/Waste | Discovered new exit (range 13) 11521 | -6/Waste | Warlord forces began an assault 11646 | -6/Waste | Identified exit to Factory 11662 | -6/Waste | Entered Factory 11662 | -6/Factory | Accompanied by 20 allies 11788 | -6/Factory | Discovered new exit (range 13) 11865 | -6/Factory | Identified exit to Factory 12053 | -6/Factory | Fabricated Enh. Flexi-carbon Leg (x1) 12196 | -6/Factory | Repaired Railgun 12362 | -6/Factory | First assault squad dispatched 12404 | -6/Factory | Reached level 20 12490 | -6/Factory | Fabricated System Backup Module (x2) 12602 | -6/Factory | Central database locked down 12699 | -6/Factory | Reached level 21 12763 | -6/Factory | Build established: Hacker-Assassin 12793 | -6/Factory | Entered Extension 12793 | -6/Extension | Accompanied by 6 allies 13229 | -6/Extension | Rescued a captive Derelict 13409 | -6/Extension | Build established: Commander-Assassin 13551 | -6/Extension | Spotted B-75 Beast 13557 | -6/Extension | Destroyed B-75 Beast 13570 | -6/Extension | Destroyed B-75 Beast 13618 | -6/Extension | Disrupted transfer network 13726 | -6/Extension | Discovered exit to Factory (range 3) 13848 | -6/Extension | Discovered exit to Factory (range 17) 13848 | -6/Extension | Discovered new exit (range 17) 13868 | -6/Extension | Identified exit to Cetus 13869 | -6/Extension | Build established: Hacker-Assassin 13952 | -6/Extension | Rescued A7 13970 | -6/Extension | Central database locked down 14066 | -6/Extension | Rescued a captive Derelict 14143 | -6/Extension | Rescued a captive Derelict 14143 | -6/Extension | Rescued a captive Derelict 14172 | -6/Extension | Rescued a captive Derelict 14214 | -6/Extension | Rescued a captive Derelict 14216 | -6/Extension | Rescued a captive Derelict 14438 | -6/Extension | Entered Cetus 14438 | -6/Cetus | Accompanied by 17 allies 14443 | -6/Cetus | Acquired a Cetus Manufacturing Module code from A7 14455 | -6/Cetus | Spotted Cetus Guard 14455 | -6/Cetus | Spotted Cetus Guard 14458 | -6/Cetus | Allies destroyed Cetus Guard 14458 | -6/Cetus | Spotted Cetus Guard 14460 | -6/Cetus | Spotted Cetus Guard 14466 | -6/Cetus | Allies destroyed Cetus Guard 14466 | -6/Cetus | Allies destroyed Cetus Guard 14476 | -6/Cetus | Destroyed Cetus Guard 14540 | -6/Cetus | Reached level 22 14675 | -6/Cetus | Escorted A7 to Cetus Mainframe 14740 | -6/Cetus | Upgraded with Utility slot (x1) 14780 | -6/Cetus | Build established: Generator-Assassin 14792 | -6/Cetus | Discovered exit to Factory (range 17) 14899 | -6/Cetus | Discovered new exit (range 17) 14943 | -6/Cetus | Identified exit to Archives 14973 | -6/Cetus | Destroyed Cetus Guard 14976 | -6/Cetus | Spotted Cetus Guard 14978 | -6/Cetus | Spotted Cetus Guard 14979 | -6/Cetus | Spotted Cetus Guard 14980 | -6/Cetus | Allies destroyed Cetus Guard 14982 | -6/Cetus | Destroyed Cetus Guard 14984 | -6/Cetus | Allies destroyed Cetus Guard 14993 | -6/Cetus | Discovered exit to Factory (range 17) 15005 | -6/Cetus | Met Revision 17 15072 | -6/Cetus | Entered Archives 15072 | -6/Archives | Accompanied by 7 allies 15077 | -6/Archives | Received a hacking code to weaken MAIN.C 15090 | -6/Archives | Met Zhirov 15096 | -6/Archives | Reinforcements dispatched to Archives 15099 | -6/Archives | Unable to access archive contents 15099 | -6/Archives | Unable to access archive contents 15100 | -6/Archives | Discovered exit to Factory (range 14) 15102 | -6/Archives | Unable to access archive contents 15118 | -6/Archives | Discovered new exit (range 17) 15126 | -6/Archives | Read partially decrypted archive contents 15126 | -6/Archives | Read partially decrypted archive contents 15129 | -6/Archives | Discovered new exit (range 15) 15141 | -6/Archives | Reinforcements dispatched to Archives 15143 | -6/Archives | Zhirov warped through subspace 15145 | -6/Archives | Unable to access archive contents 15161 | -6/Archives | Zhirov detonated Archives 15162 | -6/Archives | Core integrity fell below 50% 15181 | -6/Archives | Identified exit to Hub_04(d) 15275 | -6/Archives | Entered Hub_04(d) 15317 | -6/Hub_04(d) | Discovered exit to Factory (range 18) 15375 | -6/Hub_04(d) | Crushed by falling debris 15912 | -6/Hub_04(d) | Discovered exit to Factory (range 17) 15975 | -6/Hub_04(d) | First assault squad dispatched 16241 | -6/Hub_04(d) | Discovered exit to Factory (range 9) 16470 | -6/Hub_04(d) | Discovered exit to Factory (range 16) 16530 | -6/Hub_04(d) | Destroyed B-75 Beast 16630 | -6/Hub_04(d) | Reached level 23 16630 | -6/Hub_04(d) | Network Hub disabled 16638 | -6/Hub_04(d) | Spotted Lightning 16641 | -6/Hub_04(d) | Spotted Lightning 16642 | -6/Hub_04(d) | Spotted Lightning 16673 | -6/Hub_04(d) | Destroyed Lightning 16685 | -6/Hub_04(d) | Destroyed Lightning 16703 | -6/Hub_04(d) | Destroyed Lightning 16723 | -6/Hub_04(d) | Crushed by falling debris 16731 | -6/Hub_04(d) | Destroyed 8 combat bots 16819 | -6/Hub_04(d) | Found Prototype Device 16819 | -6/Hub_04(d) | Identified EM Dispersion Field 17009 | -6/Hub_04(d) | Spotted Lightning 17010 | -6/Hub_04(d) | System corruption reached 10% 17013 | -6/Hub_04(d) | Spotted Lightning 17042 | -6/Hub_04(d) | Spotted Lightning 17054 | -6/Hub_04(d) | Destroyed Lightning 17065 | -6/Hub_04(d) | Network Hub disabled 17068 | -6/Hub_04(d) | Build established: Scavenger-Assassin 17075 | -6/Hub_04(d) | Destroyed Lightning 17079 | -6/Hub_04(d) | Destroyed Lightning 17100 | -6/Hub_04(d) | Found Prototype Device 17100 | -6/Hub_04(d) | Identified Exp. Phase Shifter 17215 | -6/Hub_04(d) | Destroyed Lightning 17235 | -6/Hub_04(d) | Spotted Lightning 17252 | -6/Hub_04(d) | Destroyed Lightning 17252 | -6/Hub_04(d) | Spotted Lightning 17261 | -6/Hub_04(d) | Destroyed Lightning 17316 | -6/Hub_04(d) | Found Exp. Phase Shifter 17332 | -6/Hub_04(d) | Network Hub disabled 17381 | -6/Hub_04(d) | Spotted Lightning 17384 | -6/Hub_04(d) | Network Hub disabled 17392 | -6/Hub_04(d) | Entered Factory 17619 | -5/Factory | Discovered new exit (range 15) 17692 | -5/Factory | First assault squad dispatched 17718 | -5/Factory | Identified exit to Factory 17877 | -5/Factory | Destroyed 12 combat bots 17969 | -5/Factory | Garrison activated, responded to threat 18069 | -5/Factory | Reached level 24 18069 | -5/Factory | Upgraded with Utility slot (x1) 18094 | -5/Factory | Local fabrication network quarantined 18200 | -5/Factory | Repaired Lyr. Medium Armor Plating 18208 | -5/Factory | High security lockdown imminent 18256 | -5/Factory | Repaired EM Dispersion Field 18288 | -5/Factory | High security lockdown engaged 18493 | -5/Factory | Entered another Factory area 18493 | -4/Factory | Spotted B-86 Titan 18507 | -4/Factory | Destroyed B-86 Titan 18507 | -4/Factory | Reached level 25 18560 | -4/Factory | Discovered new exit (range 11) 18585 | -4/Factory | Identified exit to Research 18743 | -4/Factory | First assault squad dispatched 18764 | -4/Factory | Discovered new exit (range 20) 18898 | -4/Factory | Identified exit to Upper Caves 18899 | -4/Factory | Entered Upper Caves 19069 | -4/Upper Caves | Destroyed 7 combat bots 19187 | -4/Upper Caves | Learned Research stockpile data 19382 | -4/Upper Caves | Build established: Scavenger-Tank 19421 | -4/Upper Caves | Destroyed B-86 Titan 19514 | -4/Upper Caves | Reached level 26 19580 | -4/Upper Caves | Discovered new exit (range 11) 19588 | -4/Upper Caves | Identified exit to Upper Caves 19650 | -4/Upper Caves | Entered another Upper Caves area 19650 | -4/Upper Caves | Accompanied by 4 allies 19652 | -4/Upper Caves | Attracted the attention of an 0b10 checkpoint 19662 | -4/Upper Caves | Discovered exit to Research (range 39) 19733 | -4/Upper Caves | Learned 12 Research zone layouts 19971 | -4/Upper Caves | Encountered a Warlord checkpoint 19972 | -4/Upper Caves | Build established: Scavenger-Skirmisher 19980 | -4/Upper Caves | Discovered new exit (range 22) 20014 | -4/Upper Caves | Identified exit to Zhirov 20040 | -4/Upper Caves | Entered Zhirov 20040 | -4/Zhirov | Accompanied by 8 allies 20040 | -4/Zhirov | Discovered new exit (range 3) 20046 | -4/Zhirov | Identified exit to Proximity Caves 20081 | -4/Zhirov | Learned location of Testing (-2) 20081 | -4/Zhirov | Learned location of Command (-1) 20120 | -4/Zhirov | Found Alien Artifact 20120 | -4/Zhirov | Identified Integrated Reactor 20120 | -4/Zhirov | Installed Integrated Reactor, increased core energy generation (+2%) 20165 | -4/Zhirov | Found Alien Artifact 20165 | -4/Zhirov | Identified Transdimensional Reconstructor 20165 | -4/Zhirov | Warped through subspace 20251 | -4/Zhirov | Entered Proximity Caves 20251 | -3/Proximity Caves | Accompanied by 8 allies 20271 | -3/Proximity Caves | Attracted the attention of an 0b10 checkpoint 20373 | -3/Proximity Caves | Reached level 27 20466 | -3/Proximity Caves | Spotted B-86 Titan 20486 | -3/Proximity Caves | Destroyed B-86 Titan 20694 | -3/Proximity Caves | Attracted the attention of an 0b10 outpost 20763 | -3/Proximity Caves | Reached level 28 20892 | -3/Proximity Caves | Discovered exit to Research (range 12) 20970 | -3/Proximity Caves | Entered Research 20970 | -3/Research | Accompanied by 5 allies 20971 | -3/Research | Identified exit to Research 20971 | -3/Research | Identified exit to Quarantine 21264 | -3/Research | Reached level 29 21266 | -3/Research | Upgraded with Utility slot (x1) 21270 | -3/Research | Central database locked down 21445 | -3/Research | Found Prototype Device 21445 | -3/Research | Identified Exp. Transmission Jammer 21581 | -3/Research | Discovered exit to Quarantine (range 19) 21584 | -3/Research | Entered another Research area 21584 | -2/Research | Accompanied by 4 allies 21585 | -2/Research | Identified exit to Testing 21586 | -2/Research | Reached level 30 21588 | -2/Research | Upgraded with Propulsion slot (x1) 21834 | -2/Research | First assault squad dispatched 22021 | -2/Research | Reached level 31 22027 | -2/Research | Upgraded with Power slot (x1) 22198 | -2/Research | Discovered new exit (range 18) 22248 | -2/Research | Destroyed 12 combat bots 22369 | -2/Research | Identified exit to Access 22380 | -2/Research | Entered Access 22382 | -1/Access | Reached level 32 22382 | -1/Access | Reached level 33 22474 | -1/Access | Identified exit to Command 22612 | -1/Access | Fabricated Enh. Nova Cannon (x1) 22630 | -1/Access | First assault squad dispatched 22818 | -1/Access | Entered Command 22820 | -1/Command | Reached level 34 22840 | -1/Command | Upgraded with Utility slot (x1) 23066 | -1/Command | Discovered new exit (range 19) 23345 | -1/Command | Spotted Striker 23350 | -1/Command | Destroyed Striker 23357 | -1/Command | Spotted Executioner 23357 | -1/Command | Spotted Alpha 7 23358 | -1/Command | Spotted Executioner 23370 | -1/Command | Destroyed Executioner 23373 | -1/Command | Destroyed Alpha 7 23380 | -1/Command | Destroyed Executioner 23419 | -1/Command | Spotted Striker 23423 | -1/Command | Spotted Alpha 7 23424 | -1/Command | Destroyed Striker 23432 | -1/Command | Reached level 35 23432 | -1/Command | Destroyed Alpha 7 23443 | -1/Command | Upgraded with Power slot (x1) 23451 | -1/Command | Found Prototype Energy Gun 23451 | -1/Command | Identified Enh. Gamma Rifle 23530 | -1/Command | Spotted Executioner 23530 | -1/Command | Spotted Executioner 23530 | -1/Command | Spotted B-99 Colossus 23531 | -1/Command | Build established: Generator-Tank 23533 | -1/Command | Destroyed Executioner 23536 | -1/Command | Destroyed Executioner 23555 | -1/Command | Destroyed B-99 Colossus 23570 | -1/Command | Spotted B-99 Colossus 23583 | -1/Command | Destroyed B-99 Colossus 23652 | -1/Command | Identified exit to Surface 23653 | *** | Escaped! Last Messages --------------- 23633_ K-01 Serf collects debris. 23641_ The unstable cave ceiling collapses. 23642_ K-01 Serf collects debris. 23644_ The unstable cave ceiling collapses. 23645_ K-01 Serf collects debris. 23645_ The Access Shell folds into the floor. 23647_ K-01 Serf collects debris. 23652_ EXIT=IDENTIFIED: SURFACE 23653_ K-01 Serf cleans the Access Lift. [Achievement: 5k Club] [Achievement: 10k Club] [Achievement: 20k Club] [Achievement: 30k Club] [Achievement: 40k Club] [Achievement: 50k Club] [Achievement: This Is Interesting...] [Achievement: Torch] [Achievement: Epsilon Run] [Achievement: Victory By Combat] [Achievement: Achiever] Map ----- +----------------------------------------------------+ | """ #####?######## * !! ###+######## | | T""" #####?##### % !%= =% ##? | | ########+## ######### ==* #? | | ### # #######[ = * %* = #?? | | ### # ######![%*!%[ %= #?? | | ?## ! !=![!*! /% # %#= ####?? | | ### + =!%! [ # = ## =*! #????? | | #?#[ ## ######|* #######=!%===# #????? | | ######+##### #######//// #???##=%%#% #####?#?? | | # #?####^^ ^^^ ##??## !## ! ]#???? | | # #####;^^^^^ ##???# * ] #???? | | = # ##### k ^ ^ #???# % ==!###?? | | ! # #??## ^ ^ ^##???# = =!! #?? | | =!= # #?### ^ #???###### =!! #?? | | *%= * # #####k* ^^ ##????##?#! #?? | | ## ##### =%[[% #! [ #???#???## #?? | | !%!!=! =% [#### !% #####????# # ##?? | | !!*= [= ####*! !!####??##??# ## #?? | | ######## ###![!! !### #?#????###?### #?? | | # ###= !! [=%=! ###?#?#???????##?? | | # ## ]!! !!! ####?#????????????? | | # ###!=! * ###??#???????????? | | # ### ##????##??????????? | | + ### k ##???##??????????? | | ## ### "" ###?#?#???????????? | | ## ### "@ #?#???????????????? | | "" "" ## ### ######?#??????????? | | ""R"" ## ### ^ ;#######??????????? | | """" ## ### #######???????????? | | ## ### #?###?????????????? | | ##!!! ### #?##?#????????????? | | #######+##=!%= #################??####??????????? | | ####### ###!| ##################?#?##??????????? | | ####### ### ! ################?###?#???????????? | | #####"" ### =%! #####################????????????? | | #####"T ### |!! ##################?##????????????? | | ####### ### #########?###????????????? | | ####### ### ########?##??#???????????? | | ####### ### #?#####?#####?#??????????? | | ####### ### #?######?#?#?????????????? | | ####### ### ######??##?#?????????????? | | ## ### ############?#########???????????? | | ! ## ### #! ######?#?###???????????? | | + ### # ##?##?######???????????? | | ###### # #####?#??###???????????? | | ===###### # ##?##??####?#??????????? | | == ###### # ############???????????? | | == ###### # "" "" #########?##???#???????? | | ###### # ""R"" ######?#?##?#??????????? | | ###### # """" #######??#?????????????? | +----------------------------------------------------+ Best States ------------- Heat Dissipation 97 Energy Generation 128 Energy Capacity 1960 Matter Stores 300 Matter Capacity 300 Sight Range 17 Robot Scan Range 50 Terrain Scan Range 24 Terrain Scan Density 460 Jamming Range 14 Power Amplification 30 Armor Coverage 450 Resistance: KI 20 Resistance: TH 20 Resistance: EX 5 Resistance: EM 75 Weapon Shielding 100 Point Defense Rating 160 Weapon Cycling 30 Melee Speed Boost 20 Phase Shifting 20 Evasion (%) 67 Launcher Accuracy 20 Armor Integrity Analysis 66 Energy Filtering 30 Particle Charging 30 Offensive Hacking 20 Defensive Hacking 10 Item Schematics ----------------- Exp. Sensor Array | -8/Materials | Scanalyzed Prc. Beam Rifle | -8/Materials | Scanalyzed Hvy. Missile Launcher | -6/Factory | Scanalyzed Phasing Sabre | -6/Factory | Scanalyzed Imp. Heavy Laser | -6/Factory | Scanalyzed Weapon Cycler | -6/Factory | Scanalyzed Lyr. Medium Armor Plating | -6/Factory | Scanalyzed Enh. Flexi-carbon Leg | -6/Factory | Scanalyzed System Backup Module | -6/Factory | Hacked Assault Drone Bay | -4/Zhirov | Free Exp. Heat Sink | -4/Zhirov | Free Exp. Optical Array | -4/Zhirov | Free Imp. Arc Thrower | -4/Zhirov | Free Centrium Leg | -3/Research | Hacked Enh. Nova Cannon | -2/Research | Hacked Robot Schematics ------------------ None Fabricated ------------ Variable Charge Gun | x2 | -7/Factory | Preloaded Imp. Weapon Cycler | x2 | -6/Factory | Preloaded Enh. Flexi-carbon Leg | x1 | -6/Factory System Backup Module | x2 | -6/Factory Enh. Nova Cannon | x1 | -1/Access Alien Tech Used ----------------- Integrated Reactor Transdimensional Reconstructor Achievements -------------- 10k Club 20k Club 30k Club 404 40k Club 50k Club 5k Club A New Friend Achiever Adventurer Alien Tech Are We The Baddies? Armchair Analyst Brute Force Can't Touch This Collateral Damage Dangerous Findings Deadly Force Denied? Dramatic Entrance Epsilon Run Equal Opportunity Bot Explorer Generalissimo Giant Slayer Hehehe Help From High Places Hunted I Survived The Infestation I'm Back, Baby! It Was An Accident, I Swear It's Just You Just What I Needed Killing Spree Knowing Is Half The Battle Main Advantage Maximum Efficiency More Power To You No Signal Oh No You Don't! Omniscient Cartographer Ooh, Shiny! Origins Part-time Excavator Please Form A Line Power Corrupts Preemptive Strike Prison Break Prolific Hacker Quick And Dirty Remodeling Respectable Loadout Revising The Future Ride The Lightning Robot Respite Rockin' Loadout Safety First Serviceable Loadout Significant Disruption Signs Are For Wimps Slippery One Storm Trooper Subspace Traveler Tank That's One Door That Should Stay Closed The More The Merrier This Is Interesting... Torch Total Silence Ultimate Loadout Unlikely Earthworm Victory By Combat Watch This! We Are Legion root@ Challenges ------------ None RPGLIKE | -11 -10 -10 -10 -9 -8 -7 -7 -7 -7 -7 -6 -6 -6 -6 -6 -6 -6 -6 -5 -4 -4 -4 -4 -3 -3 -2 -1 -1 --------- Run | Scr Mat Min Exi Min Mat Fac Low Low Zio Dee Pro Fac Was Fac Ext Cet Arc Hub Fac Fac Upp Upp Zhi Pro Res Res Acc Com Levels Raised 34 | . . 1 . 1 3 2 1 2 . 3 3 2 . 2 . 1 . 1 1 1 1 . . 2 1 2 2 2 XP Earned 54249 | 3000 760 1050 350 1020 4605 3795 1300 2870 650 4294 3400 3030 67 2889 1031 923 342 940 1874 1272 1039 355 118 2660 1680 3805 2510 2620 XP Spent 53650 | 2895 . 1500 . 1350 4750 2750 1670 1490 1100 4735 3040 4250 360 1550 . 2800 . 850 2300 1010 1880 . . 2100 2600 2800 1300 4570 Upgrades 102 | 18 . 3 . 2 10 4 3 4 1 15 7 7 2 2 . 3 . 3 1 2 3 . . 3 1 3 2 3 Power Slot 4 | . . . . . . . . . . . 1 1 . . . . . . . . . . . . . 1 . 1 Propulsion Slot 4 | . . . . . 1 . 1 . . . . 1 . . . . . . . . . . . . . 1 . . Utility Slot 9 | . . 2 . 1 1 1 . . . . . . . . . 1 . . 1 . . . . . 1 . . 1 Weapon Slot 4 | . . . . . 1 . 1 . 1 1 . . . . . . . . . . . . . . . . . . Core Integrity 12 | . . . . . 1 . . . . 11 . . . . . . . . . . . . . . . . . . Heat Dissipation 12 | . . . . . . 1 1 1 . . 2 1 2 . . . . . . 1 1 . . 1 . . . 1 Energy Generation 1 | . . . . . . . . . . . . . . . . . . . . . . . . . . 1 . . Energy Storage 2 | . . . . . 2 . . . . . . . . . . . . . . . . . . . . . . . Mass Support 3 | 1 . . . . 1 . . . . 1 . . . . . . . . . . . . . . . . . . Inventory Capacity 3 | . . . . 1 . 1 . . . . . . . 1 . . . . . . . . . . . . . . Sight Range 1 | 1 . . . . . . . . . . . . . . . . . . . . . . . . . . . . Sensor Range 11 | 10 . . . . . . . . . . . . . . . 1 . . . . . . . . . . . . Terrain Scan Density 3 | 3 . . . . . . . . . . . . . . . . . . . . . . . . . . . . Ranged Accuracy 8 | . . . . . . . . 2 . . 3 2 . . . . . . . . . . . 1 . . . . Melee Accuracy 6 | . . 1 . . 2 . . 1 . 2 . . . . . . . . . . . . . . . . . . Hack Attack % 4 | 2 . . . . 1 . . . . . . . . 1 . . . . . . . . . . . . . . Hack Defense % 2 | 1 . . . . . 1 . . . . . . . . . . . . . . . . . . . . . . KI Resistance % 4 | . . . . . . . . . . . . 1 . . . . . 1 . . . . . . . . 2 . TH Resistance % 4 | . . . . . . . . . . . . 1 . . . . . 1 . . 1 . . 1 . . . . EX Resistance % 1 | . . . . . . . . . . . . . . . . . . 1 . . . . . . . . . . TH Damage % 4 | . . . . . . . . . . . 1 . . . . 1 . . . 1 1 . . . . . . . Protomatter Created 7844 | . 65 68 . 25 292 224 142 224 . 687 441 381 . 80 551 166 . 1072 1030 150 210 246 . 398 384 561 83 364 Integrity Restored 16120 | . 195 134 . . 744 316 299 334 . 1866 1133 870 . 637 477 172 . 2852 1929 450 630 636 . 1056 111 921 . 358 Core 11983 | . 177 115 . . 674 194 282 178 . 1436 1085 661 . 291 337 74 . 2377 1052 450 630 223 . 751 75 672 . 249 Parts 4137 | . 18 19 . . 70 122 17 156 . 430 48 209 . 346 140 98 . 475 877 . . 413 . 305 36 249 . 109 Protomatter Decayed 4226 | . . 158 . 25 25 112 41 174 . 143 47 85 . 360 718 593 43 78 405 . 14 130 . 188 394 191 63 239 Game ------ Seed EnergyDecoderFacilitator Manual? 0 Play Time 18:43:38 Cumulative 38.7 hours Start 2020.04.16 @ 00:00:42 End 2020.05.03 @ 13:02:41 Sessions 29 Manual Loads 0 Difficulty Rogue Special Mode Winter2019/RPGLIKE Game No. 7 Rogue 7 Adventurer 0 Explorer 0 Win Type 0 Total 1 Types 1/0/0/0/0/0/0 Lore% 35 Gallery% 17 Achievement% 39 Wizard Run 0 Options --------- ASCII 1 Keyboard 0 Movement Numpad Keybinds 0 Fullscreen 2 Font 18/Smallcaps Map View 76x50 Tactical HUD 1 Map Filters NONE Filters NONE Steam 1 RUN: 4bf46e41-2d7a-457f-98dd-a5a2453c66e8